{"text_format":"1","workbook":"xlsx","n_sheets":11,"sheets":["Index","General Information","Acquisition","Amalgamation or Merger","De-merger","Sale or disposal","Other Restructuring","Slump Sale","Incorporation","Update","Taxonomy"],"not_rendered":{"charts":0,"images":1,"macros":1,"external_links":0,"defined_names":0,"comments":0,"pivot_tables":0},"unopened":[],"bounds":{"document_bytes":16777216,"sheet_cells":100000,"rows_first":2000,"rows_last":500,"rows_between":2000,"halvings":0,"cell_chars":16384,"cell_head_chars":4096},"cells_cut":0,"cells_raw":0,"read":"whole","date_system":"1900"}

{"sheet":"Index","index":0,"n_rows":52,"n_cols":10,"rows_kept":52,"cut":false,"hidden":false,"merged":[[51,3,51,9],[34,4,34,8],[28,4,28,8],[29,4,29,8],[30,4,30,8],[31,4,31,8],[32,4,32,8],[33,4,33,8],[45,3,45,9],[46,3,46,9],[47,3,47,9],[48,3,48,9],[49,3,49,9],[50,3,50,9],[37,3,37,9],[38,3,38,9],[39,3,39,9],[40,3,40,9],[41,3,41,9],[42,3,42,9],[21,3,21,9],[22,3,22,9],[25,3,25,9],[26,4,26,8],[27,4,27,8],[36,3,36,9],[20,3,20,9],[5,4,5,8],[6,5,6,8],[7,5,7,8],[8,5,8,8],[9,5,9,8],[10,5,10,8],[13,3,13,9],[14,3,14,9],[17,3,17,9],[18,3,18,9],[19,3,19,9]]}
[]
[]
[]
[]
[]
[null,null,null,null,"                                      XBRL Excel Utility"]
[null,null,null,null,"1.","Overview"]
[null,null,null,null,"2.","Before you begin"]
[null,null,null,null,"3.","Index"]
[null,null,null,null,"4.","Steps for Filing Regulation_30_Restructuring Report"]
[null,null,null,null,"5.","Fill up the data in excel utility"]
[]
[]
[null,null,null,"1. Overview"]
[null,null,null,"The excel utility can be used for creating the XBRL/XML file for efiling of Regulation_30_Restructuring Report"]
[]
[]
[null,null,null," 2.  Before you begin"]
[null,null,null,"1. The version of Microsoft Excel in your system should be Microsoft Office Excel 2007 and above."]
[null,null,null,"2. The system should have a file compression software to unzip excel utility file."]
[null,null,null,"3. Make sure that you have downloaded the latest Excel Utility."]
[null,null,null,"4. Make sure that you have downloaded the Chrome Browser to view report generated from Excel utility"]
[null,null,null,"5. Please enable the Macros (if disabled) as per instructions given in manual, so that all the functionalities of  Excel Utility works fine. Please first go through Enable Macro - Manual attached with zip file."]
[]
[]
[null,null,null,"3. Index "]
[null,null,null,1,"General Information",null,null,null,null,"General Information"]
[null,null,null,2,"Acquisition",null,null,null,null,"Acquisition"]
[null,null,null,3,"Amalgamation or Merger",null,null,null,null,"Amalgamation or Merger"]
[null,null,null,4,"De-merger",null,null,null,null,"De-merger"]
[null,null,null,5,"Sale or disposal",null,null,null,null,"Sale or disposal"]
[null,null,null,6,"Other Restructuring",null,null,null,null,"Other Restructuring"]
[null,null,null,7,"Slump Sale",null,null,null,null,"Slump Sale"]
[null,null,null,8,"Incorporation",null,null,null,null,"Incorporation"]
[null,null,null,9,"Update",null,null,null,null,"Update"]
[]
[null,null,null,"4. Steps for Filing Regulation_30_Restructuring Report"]
[null,null,null,"I.  Fill up the data: Navigate to each field of every section in the sheet to provide applicable data in correct format.  (Formats will get reflected while filling data.)  \n   - Use paste special command to paste data from other sheet."]
[null,null,null,"II. Validating Sheets:  Click on the ''Validate\" button to ensure that the sheet has been properly filled and also data has been furnished in proper format. If there are some errors on the sheet, excel utility will prompt you about the same."]
[null,null,null,"III. Validate All Sheets:  Click on the ''Home\" button. And then click on \"Validate All Sheet\" button to ensure that all sheets has been properly filled and validated successfully. If there are some errors on the sheet, excel utility will prompt you about the same and stop validation at the same time. After correction, once again follow the same procedure to validate all sheets."]
[null,null,null,"Excel Utility will not allow you to generate XBRL/XML until you rectify all errors. "]
[null,null,null,"IV. Generate XML :   Excel Utility will not allow you to generate XBRL/XML unless successful validation of all sheet is completed. Now click on 'Generate XML'' to generate XBRL/XML file. \n    - Save the XBRL/XML file in your desired folder in local system."]
[null,null,null,"V. Generate Report :   Excel Utility will allow you to generate Report. Now click on 'Generate Report'' to generate html report.   \n     - Save the HTML Report file in your desired folder in local system.     \n     - To view HTML Report open \"Chrome Web Browser\" . \n     - To print report in PDF Format, Click on print button and save as PDF. "]
[]
[]
[null,null,null,"5. Fill up the data in excel utility"]
[null,null,null,"1. Cells with red asterisk mark indicate mandatory fields."]
[null,null,null,"2. If mandatory field is left empty, then Utility will not allow you to proceed further for generating XML."]
[null,null,null,"3. You are not allowed to enter data in the Grey Cells."]
[null,null,null,"4. If fields are not applicable to your company then leave it blank. Do not insert Zero unless it is a mandatory field."]
[null,null,null,"5. Data provided must be in correct format, otherwise Utility will not allow you to proceed further for generating XML."]
[null,null,null,"6. Select data from \"Dropdown list\" wherever applicable. "]

{"sheet":"General Information","index":1,"n_rows":33,"n_cols":26,"rows_kept":33,"cut":false,"hidden":false,"merged":[[6,4,6,7]]}
[null,null,null,null,null,null,null,null,null,null,"Acquisition (including agreement to acquire)","Amalgamation/ Merger","De-merger","Sale or disposal of unit(s)/division(s)/subsidiary","Incorporation","Slump Sale","Other Restructuring"]
[null,null,null,null,null,null,null,null,null,null,"New","Update"]
[null,null,null,null,null,null,null,null,null,null,"01","01",2020]
[null,null,null,null,null,null,null,null,null,null,"02","02",{"$f":"+M3+1","v":2021}]
[null,null,null,null,null,null,null,null,null,null,"03","03",{"$f":"+M4+1","v":2022}]
[null,null,null,null,null,null,null,null,null,null,"04","04",2023]
[null,null,null,null,"General Information",null,null,null,null,null,"05","05",2024]
[null,null,null,null,"NSE Symbol*",null,null,null,null,null,"06","06",2025,null,null,null,null,null,null,null,null,null,null,null,null,"NSESymbol"]
[null,null,null,null,"Name of the Company*",null,null,null,null,null,"07","07",2026,null,null,null,null,null,null,null,null,null,null,null,null,"NameOfTheCompany"]
[null,null,null,null,"BSE Scrip Code*",null,null,null,null,null,"08","08",2027,null,null,null,null,null,null,null,null,null,null,null,null,"ScripCode"]
[null,null,null,null,"MSEI Symbol*",null,null,null,null,null,"09","09",2028,null,null,null,null,null,null,null,null,null,null,null,null,"MSEISymbol"]
[null,null,null,null,"ISIN*",null,null,null,null,null,"10","10",2029,null,null,null,null,null,null,null,null,null,null,null,null,"ISIN"]
[null,null,null,null,"Type of Announcement*",null,null,null,null,null,"11","11",2030,null,null,null,null,null,null,null,null,null,null,null,null,"TypeOfAnnouncementPertainingToRegulation30Restructuring"]
[null,null,null,null,"Event",null,null,null,null,null,"12","12",2031,null,null,null,null,null,null,null,null,null,null,null,null,"EventOfAnnouncementPertainingToRegulation30Restructuring"]
[null,null,null,null,"Date of event*",null,null,null,null,null,"13",null,null,null,null,null,null,null,null,null,null,null,null,null,null,"DateOfEventOfAnnouncementPertainingToRegulation30Restructuring"]
[null,null,null,null,"Date of initial announcement",null,null,null,null,null,"14",null,null,null,null,null,null,null,null,null,null,null,null,null,null,"DateOfInitialAnnouncement"]
[null,null,null,null,"Date of latest announcement",null,null,null,null,null,"15","01",null,null,null,null,null,null,null,null,null,null,null,null,null,"DateOfLatestAnnouncement"]
[null,null,null,null,"Remarks (website dissemination)",null,null,null,null,null,"16","03",null,null,null,null,null,null,null,null,null,null,null,null,null,"RemarksForWebsiteDissemination"]
[null,null,null,null,"Remarks for Exchange (not for Website Dissemination)",null,null,null,null,null,"17","05",null,null,null,null,null,null,null,null,null,null,null,null,null,"RemarksForExchangeNotForWebsiteDissemination"]
[null,null,null,null,"Date of Report",{"$f":"TODAY()","v":"2023-04-13"},null,null,null,null,"18","07",null,null,null,null,null,null,null,null,null,null,null,null,null,"DateOfReport"]
[null,null,null,null,null,null,null,null,null,null,"19","08"]
[null,null,null,null,null,null,null,null,null,null,"20","10"]
[null,null,null,null,null,null,null,null,null,null,"21","12"]
[null,null,null,null,null,null,null,null,null,null,"22"]
[null,null,null,null,null,null,null,null,null,null,"23"]
[null,null,null,null,null,null,null,null,null,null,"24","04"]
[null,null,null,null,null,null,null,null,null,null,"25","06"]
[null,null,null,null,null,null,null,null,null,null,"26","09"]
[null,null,null,null,null,null,null,null,null,null,"27","11"]
[null,null,null,null,null,null,null,null,null,null,"28"]
[null,null,null,null,null,null,null,null,null,null,"29"]
[null,null,null,null,null,null,null,null,null,null,"30"]
[null,null,null,null,null,null,null,null,null,null,"31"]

{"sheet":"Acquisition","index":2,"n_rows":46,"n_cols":25,"rows_kept":46,"cut":false,"hidden":true,"merged":[[6,4,6,6]]}
[null,null,null,null,null,"DescriptionOfFinancialYear","Turnover",null,null,null,null,"Listed Entity (self)","Material Subsidiary","Subsidiary","Step Down Subsidiary","Others"]
[null,null,null,null,null,null,null,null,null,null,null,"Yes"]
[null,null,null,null,null,null,null,null,null,null,null,"No"]
[null,null,null,null,null,null,null,null,null,null,null,"NA"]
[null,null,null,null,null,null,null,null,null,null,null,"Cash","Shares","Others","Cash and Shares","All of the above"]
[null,null,null,null,null,null,null,null,null,null,null,"01","01",2020]
[null,null,null,null,"Acquisition",null,null,null,null,null,null,"02","02",{"$f":"+N6+1","v":2021}]
[null,null,null,null,"Name of acquirer*",null,null,null,null,null,null,"03","03",{"$f":"+N7+1","v":2022},2018,null,null,null,null,null,null,null,null,null,"NameOfAcquirer"]
[null,null,null,null,"Relationship of acquirer with the listed entity*",null,null,null,null,null,null,"04","04",2023,2019,null,null,null,null,null,null,null,null,null,"RelationshipOfAcquirerWithTheListedEntity"]
[null,null,null,null,"Details of other relation with acquirer",null,null,null,null,null,null,"05","05",2024,2020,null,null,null,null,null,null,null,null,null,"DetailsOfOtherRelationWithTheListedEntity"]
[null,null,null,null,"Name of the target entity",null,null,null,null,null,null,"06","06",2025,{"$f":"+O10+1","v":2021},null,null,null,null,null,null,null,null,null,"NameOfTheTargetEntity"]
[null,null,null,null,"Latest financial parameter of target entity",null,null,null,null,null,null,"07","07",2026,2022]
[null,null,null,null,"Turnover ( In crore)*",null,null,null,null,null,null,"08","08",2027,2023,null,null,null,null,null,null,null,null,null,"TurnoverOfTargetEntity"]
[null,null,null,null,"PAT ( In crore)*",null,null,null,null,null,null,"09","09",2028,2024,null,null,null,null,null,null,null,null,null,"ProfitAfterTaxOfTargetEntity"]
[null,null,null,null,"Networth ( In crore)*",null,null,null,null,null,null,"10","10",2029,null,null,null,null,null,null,null,null,null,null,"NetWorthOfTargetEntity"]
[null,null,null,null,"Other",null,null,null,null,null,null,"11","11",2030,null,null,null,null,null,null,null,null,null,null,"OtherFinancialParameterOfTargetEntity"]
[null,null,null,null,"Whether the acquisition would fall within Related Party Transaction(s)?*",null,null,null,null,null,null,"12","12",2031,null,null,null,null,null,null,null,null,null,null,"WhetherTheAcquisitionWouldFallWithinRelatedPartyTransactions"]
[null,null,null,null,"Date of board meeting in which RPT approval taken",null,null,null,null,null,null,"13",null,null,null,null,null,null,null,null,null,null,null,null,"DateOfBoardMeetingInWhichRPTApprovalTakenForAcquisitionEvent"]
[null,null,null,null,"Date of audit committee meeting in which RPT approval taken",null,null,null,null,null,null,"14","01",null,null,null,null,null,null,null,null,null,null,null,"DateOfAuditCommitteeMeetingInWhichRPTApprovalTakenForAcquisitionEvent"]
[null,null,null,null,"Whether the said RPT is material?*",null,null,null,null,null,null,"15","03",null,null,null,null,null,null,null,null,null,null,null,"WhetherAcquisitionEventRPTIsMaterial"]
[null,null,null,null,"Date of approval from shareholders",null,null,null,null,null,null,"16","05",null,null,null,null,null,null,null,null,null,null,null,"DateOfApprovalFromShareholdersForAcquisitionEvent"]
[null,null,null,null,"Whether the promoter / promoter group / group / associate / holding /  subsidiary companies / Director&KMP and its relatives have any interest in the entity being acquired?*",null,null,null,null,null,null,"17","07",null,null,null,null,null,null,null,null,null,null,null,"WhetherThePromoterOrPromoterGroupOrGroupOrAssociateOrHoldingOrSubsidiaryCompaniesOrDirectorAndKMPAndItsRelativesHaveAnyInterestInTheEntityBeingAcquired"]
[null,null,null,null,"Nature of interest and details thereof ",null,null,null,null,null,null,"18","08",null,null,null,null,null,null,null,null,null,null,null,"NatureOfInterestAndDetailsThereofForAcquisitionEvent"]
[null,null,null,null,"Whether the same is done at “arms length”?*",null,null,null,null,null,null,"19","10",null,null,null,null,null,null,null,null,null,null,null,"WhetherAcquisitionEventIsDoneAtArmsLength"]
[null,null,null,null,"Whether special resolution is passed/proposed?",null,null,null,null,null,null,null,null,null,null,null,null,null,null,null,null,null,null,null,"WhetherSpecialResolutionIsPassedOrProposedForAcquisitionEvent"]
[null,null,null,null,"Date of Special Resolution",null,null,null,null,null,null,"20","12",null,null,null,null,null,null,null,null,null,null,null,"DateOfSpecialResolutionForAcquisitionEvent"]
[null,null,null,null,"Industry to which the entity being acquired belongs*",null,null,null,null,null,null,"21",null,null,null,null,null,null,null,null,null,null,null,null,"IndustryToWhichTheEntityBeingAcquiredBelongs"]
[null,null,null,null,"Objects and effects of acquisition (including but not limited to, disclosure of reasons for acquisition of target entity, if its business is outside the main line of business of the listed entity)*",null,null,null,null,null,null,"22","04",null,null,null,null,null,null,null,null,null,null,null,"ObjectsAndEffectsOfAcquisitionIncludingButNotLimitedToDisclosureOfReasonsForAcquisitionOfTargetEntityIfItsBusinessIsOutsideTheMainLineOfBusinessOfTheListedEntity"]
[null,null,null,null,"Whether any governmental or regulatory approvals required for the acquisition?*",null,null,null,null,null,null,"23","06",null,null,null,null,null,null,null,null,null,null,null,"WhetherAnyGovernmentalOrRegulatoryApprovalsRequiredForTheAcquisition"]
[null,null,null,null,"Provide brief details of any governmental or regulatory approvals",null,null,null,null,null,null,"24","09",null,null,null,null,null,null,null,null,null,null,null,"ProvideBriefDetailsOfAnyGovernmentalOrRegulatoryApprovalsForTheAcquisition"]
[null,null,null,null,"Whether the transaction will be in tranches*",null,null,null,null,null,null,"25","11",null,null,null,null,null,null,null,null,null,null,null,"WhetherTheAcquisitionTransactionWillBeInTranches"]
[null,null,null,null,"Indicative time period for completion of the acquisition*",null,null,null,null,null,null,"26",null,null,null,null,null,null,null,null,null,null,null,null,"IndicativeTimePeriodForCompletionOfTheAcquisition"]
[null,null,null,null,"Nature of consideration- whether cash consideration or share swap and details of the same*",null,null,null,null,null,null,"27",null,null,null,null,null,null,null,null,null,null,null,null,"NatureOfConsiderationForAcquisitionEvent"]
[null,null,null,null,"Details of consideration",null,null,null,null,null,null,"28",null,null,null,null,null,null,null,null,null,null,null,null,"DetailsOfConsiderationForAcquisitionEvent"]
[null,null,null,null,"Cost of acquisition or the price at which the shares are acquired (Total value) ( Rs in Crore)*",null,null,null,null,null,null,"29",null,null,null,null,null,null,null,null,null,null,null,null,"CostOfAcquisitionOrThePriceAtWhichTheSharesAreAcquired"]
[null,null,null,null,"Existing percentage of shareholding held by acquirer*",null,null,null,null,null,null,"30",null,null,null,null,null,null,null,null,null,null,null,null,"ExistingPercentageOfShareholdingHeldByAcquirer"]
[null,null,null,null,"Percentage of Control acquired",null,null,null,null,null,null,"31",null,null,null,null,null,null,null,null,null,null,null,null,"PercentageOfControlAcquired"]
[null,null,null,null,"Percentage of shares acquired (additional, if existing holding persists)",null,null,null,null,null,null,null,null,null,null,null,null,null,null,null,null,null,null,null,"PercentageOfAdditionalSharesAcquiredIfExistingHoldingPersists"]
[null,null,null,null,"Brief background about the entity acquired in terms of products/line of business acquired*",null,null,null,null,null,null,null,null,null,null,null,null,null,null,null,null,null,null,null,"BriefBackgroundAboutTheEntityAcquiredInTermsOfProductsLineOfBusinessAcquired"]
[null,null,null,null,"Date of incorporation",null,null,null,null,null,null,null,null,null,null,null,null,null,null,null,null,null,null,null,"DateOfIncorporationForAcquisitionEvent"]
[null,null,null,null,"History of last 3 years turnover","Year Description\n(YYYY-YY)","Amount of turnover\n(In Crore))"]
[null,null,null,null,"1st Previous year turnover",null,null,null,null,null,null,null,null,null,null,null,null,null,null,null,null,null,null,null,"FinancialYear1Member"]
[null,null,null,null,"2nd Previous year turnover",null,null,null,null,null,null,null,null,null,null,null,null,null,null,null,null,null,null,null,"FinancialYear2Member"]
[null,null,null,null,"3rd Previous year turnover",null,null,null,null,null,null,null,null,null,null,null,null,null,null,null,null,null,null,null,"FinancialYear3Member"]
[null,null,null,null,"Country in which the acquired entity has presence*",null,null,null,null,null,null,null,null,null,null,null,null,null,null,null,null,null,null,null,"CountryInWhichTheAcquiredEntityHasPresence"]
[null,null,null,null,"Any other significant information (in brief)",null,null,null,null,null,null,null,null,null,null,null,null,null,null,null,null,null,null,null,"AnyOtherBriefSignificantInformationForTheAcquisition"]

{"sheet":"Amalgamation or Merger","index":3,"n_rows":30,"n_cols":33,"rows_kept":30,"cut":false,"hidden":true,"merged":[[6,4,6,8],[7,4,7,8],[9,19,9,20],[9,21,9,22],[9,23,9,24],[8,17,8,24],[8,4,10,4],[8,5,10,5],[8,6,10,6],[8,7,10,7],[8,9,8,16],[9,9,9,10],[9,11,9,12],[9,13,9,14],[9,15,9,16],[9,17,9,18],[8,8,10,8]]}
[null,null,null,null,null,null,null,null,0,0,"Yes","Transferor","Transferee",null,null,null,null,null,null,null,null,null,null,null,null,null,null,null,"Cash","Shares","Others","Cash and Shares","All of the above"]
[null,null,null,null,null,null,null,null,null,null,"No","Listed Entity (self)","Material Subsidiary","Subsidiary","Step Down Subsidiary","Others"]
[null,null,null,null,"NameOfTheAmalgamatedEntity","TypeOfAmalgamatedEntity","RelationshipOfAmalgamatedEntityWithListedEntities","DetailsOfOtherRelationsOfAmalgamatedEntityWithListedEntities","BriefDetailsOfTurnoverOrSizeOrOtherDetailsOfAmalgamatedEntity","NumberOfSharesUnderPromoterAndPromoterGroupCategoryPreEvent","PercentageOfSharesUnderPromoterAndPromoterGroupCategoryPreEvent","NumberOfSharesUnderPublicCategoryPreEvent","PercentageOfSharesUnderPublicCategoryPreEvent","NumberOfSharesUnderOtherCategoryPreEvent","PercentageOfSharesUnderOtherCategoryPreEvent","TotalNumberOfSharesPreEvent","TotalPercentageOfSharesPreEvent","NumberOfSharesUnderPromoterAndPromoterGroupCategoryPostEvent","PercentageOfSharesUnderPromoterAndPromoterGroupCategoryPostEvent","NumberOfSharesUnderPublicCategoryPostEvent","PercentageOfSharesUnderPublicCategoryPostEvent","NumberOfSharesUnderOtherCategoryPostEvent","PercentageOfSharesUnderOtherCategoryPostEvent","TotalNumberOfSharesPostEvent","TotalPercentageOfSharesPostEvent"]
[]
[]
[]
[null,null,null,null,"Amalgamation or Merger"]
[null,null,null,null,"Details of the entity(ies) forming part of the amalgamation/merger"]
[null,null,null,null,"Name of Entity","Type of Entity*","Relationship with listed entity(ies)*","Details of other relations","Details in brief such as, size, turnover etc","Details of Pre Shareholding",null,null,null,null,null,null,null,"Details of Post Shareholding"]
[null,null,null,null,null,null,null,null,null,"Promoter and Promoter Group",null,"Public ",null,"Others ",null,"Total",null,"Promoter and Promoter Group",null,"Public ",null,"Others ",null,"Total"]
[null,null,null,null,null,null,null,null,null,"Number of shares*","Percentage*","Number of shares*","Percentage*","Number of shares*","Percentage*","Number of shares*","Percentage*","Number of shares*","Percentage*","Number of shares*","Percentage*","Number of shares*","Percentage*","Number of shares*","Percentage*"]
[]
[]
[]
[null,null,null,null,"Whether the Amalgamation/Merger would fall within Related Party Transaction(s)? (\"RPT\")*",null,null,null,null,null,null,null,null,null,null,null,null,null,null,null,null,null,null,null,null,null,"WhetherTheAmalgamationOrMergerWouldFallWithinRelatedPartyTransactions"]
[null,null,null,null,"Date of board meeting in which RPT approval taken",null,null,null,null,null,null,null,null,null,null,null,null,null,null,null,null,null,null,null,null,null,"DateOfBoardMeetingForAmalgamationInWhichRPTApprovalTaken"]
[null,null,null,null,"Date of audit committee meeting in which RPT approval taken",null,null,null,null,null,null,null,null,null,null,null,null,null,null,null,null,null,null,null,null,null,"DateOfAuditCommitteeMeetingForAmalgamationInWhichRPTApprovalTaken"]
[null,null,null,null,"Whether the said RPT is material?*",null,null,null,null,null,null,null,null,null,null,null,null,null,null,null,null,null,null,null,null,null,"WhetherAmalgamationOrMergerEventRPTIsMaterial"]
[null,null,null,null,"Date of approval from shareholders",null,null,null,null,null,null,null,null,null,null,null,null,null,null,null,null,null,null,null,null,null,"DateOfApprovalOfAmalgamationOrMergerEventFromShareholders"]
[null,null,null,null,"Whether the promoter/ promoter group/ group/associate/holding/subsidiary companies/ Director&KMP and its relatives have any interest in the entity being acquired?*",null,null,null,null,null,null,null,null,null,null,null,null,null,null,null,null,null,null,null,null,null,"WhetherThePromoterOrPromoterGroupOrGroupOrAssociateOrHoldingOrSubsidiaryCompaniesOrDirectorAndKMPAndItsRelativesHaveAnyInterestInTheEntityBeingAmalgamated"]
[null,null,null,null,"Nature of interest and details thereof ",null,null,null,null,null,null,null,null,null,null,null,null,null,null,null,null,null,null,null,null,null,"NatureOfInterestAndDetailsThereofForAmalgamationOrMergerEvent"]
[null,null,null,null,"Whether the same is done at “arms length”*",null,null,null,null,null,null,null,null,null,null,null,null,null,null,null,null,null,null,null,null,null,"WhetherAmalgamationOrMergerIsDoneAtArmsLength"]
[null,null,null,null,"Whether special resolution is passed/proposed?",null,null,null,null,null,null,null,null,null,null,null,null,null,null,null,null,null,null,null,null,null,"WhetherSpecialResolutionIsPassedOrProposedForAmalgamationOrMergerEvent"]
[null,null,null,null,"Date of Special Resolution",null,null,null,null,null,null,null,null,null,null,null,null,null,null,null,null,null,null,null,null,null,"DateOfSpecialResolutionForAmalgamationOrMergerEvent"]
[null,null,null,null,"Area of business of the entity(ies)*",null,null,null,null,null,null,null,null,null,null,null,null,null,null,null,null,null,null,null,null,null,"AreaOfBusinessOfTheEntitiesForAmalgamationOrMergerEvent"]
[null,null,null,null,"Rationale for amalgamation/ merger*",null,null,null,null,null,null,null,null,null,null,null,null,null,null,null,null,null,null,null,null,null,"RationaleForAmalgamationOrMerger"]
[null,null,null,null,"Consideration*",null,null,null,null,null,null,null,null,null,null,null,null,null,null,null,null,null,null,null,null,null,"NatureOfConsiderationForAmalgamationOrMerger"]
[null,null,null,null,"Details of consideration",null,null,null,null,null,null,null,null,null,null,null,null,null,null,null,null,null,null,null,null,null,"DetailsOfConsiderationForAmalgamationOrMerger"]
[null,null,null,null,"Brief details of change in shareholding pattern (if any)of listed entity*",null,null,null,null,null,null,null,null,null,null,null,null,null,null,null,null,null,null,null,null,null,"BriefDetailsOfChangeInShareholdingPatternOfListedEntityForAmalgamationOrMerger"]
[null,null,null,null,"Any other significant information (in brief)*",null,null,null,null,null,null,null,null,null,null,null,null,null,null,null,null,null,null,null,null,null,"AnyOtherBriefSignificantInformationForAmalgamationOrMerger"]

{"sheet":"De-merger","index":4,"n_rows":18,"n_cols":30,"rows_kept":18,"cut":false,"hidden":true,"merged":[[6,4,6,9],[7,10,7,17],[7,18,7,25],[8,10,8,11],[8,22,8,23],[8,24,8,25],[8,4,9,4],[8,5,9,5],[8,6,9,6],[8,7,9,7],[8,8,9,8],[8,9,9,9],[8,12,8,13],[12,6,17,8],[8,14,8,15],[8,16,8,17],[8,18,8,19],[8,20,8,21]]}
[null,null,null,null,null,null,null,null,0,null,"Yes","Transferor","Transfere",null,"Cash","Shares","Others","Cash and Shares","All of the above"]
[null,null,null,null,null,null,null,null,null,null,"No","Listed Entity (self)","Material Subsidiary","Subsidiary","Step Down Subsidiary","Others"]
[null,null,null,null,null,null,null,null,null,null,null,"Demerged","Resulting"]
[null,null,null,null,"NameOfDemergedEntityOrDivision","TypeOfDemergedEntityOrDivision","RelationshipOfDemergedEntityOrDivisionWithListedEntities","DetailsOfOtherRelationshipOfDemergedEntityOrDivisionWithListedEntities","TurnoverOfTheDemergedDivision","PercentageToTheTotalTurnoverOfTheListedEntityInTheImmediatelyPrecedingFinancialYear","NumberOfSharesUnderPromoterAndPromoterGroupCategoryPreEvent","PercentageOfSharesUnderPromoterAndPromoterGroupCategoryPreEvent","NumberOfSharesUnderPublicCategoryPreEvent","PercentageOfSharesUnderPublicCategoryPreEvent","NumberOfSharesUnderOtherCategoryPreEvent","PercentageOfSharesUnderOtherCategoryPreEvent","TotalNumberOfSharesPreEvent","TotalPercentageOfSharesPreEvent","NumberOfSharesUnderPromoterAndPromoterGroupCategoryPostEvent","PercentageOfSharesUnderPromoterAndPromoterGroupCategoryPostEvent","NumberOfSharesUnderPublicCategoryPostEvent","PercentageOfSharesUnderPublicCategoryPostEvent","NumberOfSharesUnderOtherCategoryPostEvent","PercentageOfSharesUnderOtherCategoryPostEvent","TotalNumberOfSharesPostEvent","TotalPercentageOfSharesPostEvent"]
[]
[]
[null,null,null,null,"De-Merger"]
[null,null,null,null,"Brief details of the division(s) to be demerged*",null,null,null,null,null,"Details of Pre Shareholding",null,null,null,null,null,null,null,"Details of Post Shareholding",null,null,null,null,null,null,null,null,null,null,"BriefDetailsOfTheDivisionsToBeDemerged"]
[null,null,null,null,"Name of Entity","Type of Entity*","Relationship with listed entity(ies)*","Details of other relations","Turnover of the demerged division*","Percentage to the total turnover of the listed entity (filing this announcement) in the immediately preceding financial year/based on financials of  the last financial year*","Promoter and Promoter Group",null,"Public ",null,"Others ",null,"Total",null,"Promoter and Promoter Group",null,"Public ",null,"Others ",null,"Total"]
[null,null,null,null,null,null,null,null,null,null,"Number of shares*","Percentage*","Number of shares*","Percentage*","Number of shares*","Percentage*","Number of shares*","Percentage*","Number of shares*","Percentage*","Number of shares*","Percentage*","Number of shares*","Percentage*","Number of shares*","Percentage*"]
[]
[]
[null,null,null,null,"Consideration*",null,null,null,null,null,null,null,null,null,null,null,null,null,null,null,null,null,null,null,null,null,null,null,null,"NatureOfConsiderationForDemerger"]
[null,null,null,null,"Details of consideration",null,null,null,null,null,null,null,null,null,null,null,null,null,null,null,null,null,null,null,null,null,null,null,null,"DetailsOfConsiderationForDemerger"]
[null,null,null,null,"Rationale for demerger*",null,null,null,null,null,null,null,null,null,null,null,null,null,null,null,null,null,null,null,null,null,null,null,null,"RationaleForDemerger"]
[null,null,null,null,"Brief details of change in shareholding pattern (if any)of all entities",null,null,null,null,null,null,null,null,null,null,null,null,null,null,null,null,null,null,null,null,null,null,null,null,"BriefDetailsOfChangeInShareholdingPatternOfAllEntitiesForDemerger"]
[null,null,null,null,"Whether listing would be sought for the resulting entity*",null,null,null,null,null,null,null,null,null,null,null,null,null,null,null,null,null,null,null,null,null,null,null,null,"WhetherListingWouldBeSoughtForTheResultingEntity"]
[null,null,null,null,"Any other significant information (in brief)",null,null,null,null,null,null,null,null,null,null,null,null,null,null,null,null,null,null,null,null,null,null,null,null,"AnyOtherBriefSignificantInformationForDemerger"]

{"sheet":"Sale or disposal","index":5,"n_rows":28,"n_cols":59,"rows_kept":28,"cut":false,"hidden":true,"merged":[[6,4,6,8],[8,9,8,10],[8,11,8,12],[8,13,8,14],[8,7,8,8],[7,4,9,4],[7,5,9,5],[7,6,9,6],[7,7,7,14]]}
[null,null,null,null,null,null,null,null,0,null,null,null,null,null,null,null,null,null,null,null,null,null,null,null,null,null,null,"Transferor","Transfere",null,"Cash","Shares","Others","Cash and Shares","All of the above"]
[null,null,null,null,null,null,null,null,null,null,null,null,null,null,null,null,null,null,null,{"$f":"IF(VALUE(F13)=30,$AC$24:$AC$28,IF(VALUE(F13)=31,$AC$15:$AC$21,$AC$3:$AC$13))","v":{"$error":"#VALUE!"}},null,null,null,"Unit","Division","Subsidiary","Others","01","02","03","04","05","06","07","08","09","10","11","12","13","14","15","16","17","18","19","20","21","22","23","24","25","26","27","28","29","30","31","31"]
[null,null,null,null,"DetailsOfSaleOrDisposalUnitOrDivisionOrSubsidiaryOfTheListedEntity","TypeOfUnitOrDivisionOrSubsidiaryOfTheListedEntity","NameOfUnitOrDivisionOrSubsidiaryOfTheListedEntity","PreviousYearTurnoverOfUnitOrDivisionOrSubsidiaryOfTheListedEntity","PreviousYearPercentageOfTurnoverOfUnitOrDivisionOrSubsidiaryOfTheListedEntity","PreviousYearRevenueOfUnitOrDivisionOrSubsidiaryOfTheListedEntity","PreviousYearPercentageOfRevenueOfUnitOrDivisionOrSubsidiaryOfTheListedEntity","PreviousYearIncomeOfUnitOrDivisionOrSubsidiaryOfTheListedEntity","PreviousYearPercentageOfIncomeOfUnitOrDivisionOrSubsidiaryOfTheListedEntity","PreviousYearNetWorthOfUnitOrDivisionOrSubsidiaryOfTheListedEntity","PreviousYearPercentageOfNetWorthOfUnitOrDivisionOrSubsidiaryOfTheListedEntity",null,null,null,null,null,null,null,null,null,"Demerged","Resulting",null,"01","02","03","04","05","06","07","08","09","10","11","12",null,null,"01","03","05","07","08","10","12",null,"04","06","09","11"]
[null,null,null,null,null,null,null,null,null,null,null,null,null,null,null,null,null,null,null,null,null,null,null,null,"Yes","No",null,2020,2021,2022,2023,2024,2025,2026,2027,2028,2029,2030,2031]
[]
[]
[null,null,null,null,"Sale or Disposal"]
[null,null,null,null,"Details of Unit/Division/Subsidiary","Type*","Name of unit or division or Subsidiary of the listed entity","During the last financial year"]
[null,null,null,null,null,null,null,"Turnover",null,"Revenue",null,"Income",null,"Net Worth"]
[null,null,null,null,null,null,null,"Amount*","Percentage*","Amount*","Percentage*","Amount*","Percentage*","Amount*","Percentage*"]
[]
[]
[null,null,null,null,"Date on which the agreement for sale has been entered into*",null,null,null,null,null,null,null,null,null,null,null,null,null,null,null,null,null,null,null,null,"DateOnWhichTheAgreementForSaleHasBeenEnteredInto"]
[null,null,null,null,"The expected date of completion of sale/disposal*",null,null,null,null,null,null,null,null,null,null,null,null,null,null,null,null,null,null,null,null,"TheExpectedDateOfCompletionOfSaleOrDisposal"]
[null,null,null,null,"Consideration*",null,null,null,null,null,null,null,null,null,null,null,null,null,null,null,null,null,null,null,null,"NatureOfConsiderationForSaleOrDisposal"]
[null,null,null,null,"Details of consideration",null,null,null,null,null,null,null,null,null,null,null,null,null,null,null,null,null,null,null,null,"DetailsOfConsiderationForSaleOrDisposal"]
[null,null,null,null,"Brief details of buyers*",null,null,null,null,null,null,null,null,null,null,null,null,null,null,null,null,null,null,null,null,"BriefDetailsOfBuyers"]
[null,null,null,null,"Whether the promoter/ promoter group/ group/associate/holding/subsidiary companies/ Director&KMP and its relatives have any interest in the entity being acquired?*",null,null,null,null,null,null,null,null,null,null,null,null,null,null,null,null,null,null,null,null,"WhetherThePromoterOrPromoterGroupOrGroupOrAssociateOrHoldingOrSubsidiaryCompaniesOrDirectorAndKMPAndItsRelativesHaveAnyInterestInTheEntityBeingSaleOrDisposed"]
[null,null,null,null,"Nature of interest and details thereof ",null,null,null,null,null,null,null,null,null,null,null,null,null,null,null,null,null,null,null,null,"NatureOfInterestAndDetailsThereofForSaleOrDisposal"]
[null,null,null,null,"Whether the transaction would fall within Related Party Transactions?*",null,null,null,null,null,null,null,null,null,null,null,null,null,null,null,null,null,null,null,null,"WhetherSaleOrDisposalWouldFallWithinRelatedPartyTransactions"]
[null,null,null,null,"Date of board meeting in which RPT approval taken",null,null,null,null,null,null,null,null,null,null,null,null,null,null,null,null,null,null,null,null,"DateOfBoardMeetingInWhichRPTApprovalTakenForSaleOrDisposal"]
[null,null,null,null,"Date of audit committee meeting in which RPT approval taken",null,null,null,null,null,null,null,null,null,null,null,null,null,null,null,null,null,null,null,null,"DateOfAuditCommitteeMeetingInWhichRPTApprovalTakenForSaleOrDisposal"]
[null,null,null,null,"Whether the said RPT is material?*",null,null,null,null,null,null,null,null,null,null,null,null,null,null,null,null,null,null,null,null,"WhetherSaleOrDisposalEventRPTIsMaterial"]
[null,null,null,null,"Date of approval from shareholders",null,null,null,null,null,null,null,null,null,null,null,null,null,null,null,null,null,null,null,null,"DateOfApprovalOfSaleOrDisposalEventFromShareholders"]
[null,null,null,null,"Whether the same is done at “arms length” ?*",null,null,null,null,null,null,null,null,null,null,null,null,null,null,null,null,null,null,null,null,"WhetherSaleOrDisposalEventIsDoneAtArmsLength"]
[null,null,null,null,"Whether special resolution is passed/proposed?",null,null,null,null,null,null,null,null,null,null,null,null,null,null,null,null,null,null,null,null,"WhetherSpecialResolutionIsPassedOrProposedForSaleOrDisposalEvent"]
[null,null,null,null,"Date of Special Resolution",null,null,null,null,null,null,null,null,null,null,null,null,null,null,null,null,null,null,null,null,"DateOfSpecialResolutionForSaleOrDisposalEvent"]
[null,null,null,null,"Any other significant information (in brief)",null,null,null,null,null,null,null,null,null,null,null,null,null,null,null,null,null,null,null,null,"AnyOtherBriefSignificantInformationForSaleOrDisposal"]

{"sheet":"Other Restructuring","index":6,"n_rows":19,"n_cols":30,"rows_kept":19,"cut":false,"hidden":true,"merged":[[6,4,6,6],[7,7,7,14],[7,15,7,22],[8,7,8,8],[8,9,8,10],[8,11,8,12],[8,13,8,14],[8,15,8,16],[8,17,8,18],[8,19,8,20],[8,21,8,22],[7,4,9,4],[7,5,9,5],[7,6,9,6]]}
[null,null,null,null,null,null,null,"Yes",0,"Transferor","Transfere","Cash","Shares","Others","Cash and Shares","All of the above"]
[null,null,null,null,null,null,null,"No","Listed Entity (self)","Material Subsidiary","Subsidiary","Step Down Subsidiary","Others"]
[null,null,null,null,null,null,null,null,"Demerged","Resulting"]
[null,null,null,null,"NameOfRestructuringEntity","RestructuringEntityRelationshipWithListedEntity","DetailsOfOtherRelationsOfRestructuringEntityWithListedEntities","NumberOfSharesUnderPromoterAndPromoterGroupCategoryPreEvent","PercentageOfSharesUnderPromoterAndPromoterGroupCategoryPreEvent","NumberOfSharesUnderPublicCategoryPreEvent","PercentageOfSharesUnderPublicCategoryPreEvent","NumberOfSharesUnderOtherCategoryPreEvent","PercentageOfSharesUnderOtherCategoryPreEvent","TotalNumberOfSharesPreEvent","TotalPercentageOfSharesPreEvent","NumberOfSharesUnderPromoterAndPromoterGroupCategoryPostEvent","PercentageOfSharesUnderPromoterAndPromoterGroupCategoryPostEvent","NumberOfSharesUnderPublicCategoryPostEvent","PercentageOfSharesUnderPublicCategoryPostEvent","NumberOfSharesUnderOtherCategoryPostEvent","PercentageOfSharesUnderOtherCategoryPostEvent","TotalNumberOfSharesPostEvent","TotalPercentageOfSharesPostEvent"]
[]
[]
[null,null,null,null,"Other Restructuring"]
[null,null,null,null,"Name of Entity","Relationship with listed entity(ies)*","Details of other relations","Details of Pre Shareholding",null,null,null,null,null,null,null,"Details of Post Shareholding"]
[null,null,null,null,null,null,null,"Promoter and Promoter Group",null,"Public ",null,"Others ",null,"Total",null,"Promoter and Promoter Group",null,"Public ",null,"Others ",null,"Total"]
[null,null,null,null,null,null,null,"Number Of share*","Percentage*","Number Of share*","Percentage*","Number Of share*","Percentage*","Number Of share*","Percentage*","Number Of share*","Percentage*","Number Of share*","Percentage*","Number Of share*","Percentage*","Number Of share*","Percentage*"]
[]
[]
[null,null,null,null,"Details and reasons for restructuring*",null,null,null,null,null,null,null,null,null,null,null,null,null,null,null,null,null,null,null,null,null,null,null,null,"DetailsAndReasonsForOtherRestructuring"]
[null,null,null,null,"Quantitative effect of restructuring*",null,null,null,null,null,null,null,null,null,null,null,null,null,null,null,null,null,null,null,null,null,null,null,null,"QuantitativeEffectOfOtherRestructuring"]
[null,null,null,null,"Qualitative effect of restructuring*",null,null,null,null,null,null,null,null,null,null,null,null,null,null,null,null,null,null,null,null,null,null,null,null,"QualitativeEffectOfOtherRestructuring"]
[null,null,null,null,"Whether the promoter/ promoter group/ group/associate/holding/subsidiary companies/ Director&KMP and its relatives have any interest in the entity being acquired?*",null,null,null,null,null,null,null,null,null,null,null,null,null,null,null,null,null,null,null,null,null,null,null,null,"WhetherThePromoterOrPromoterGroupOrGroupOrAssociateOrHoldingOrSubsidiaryCompaniesOrDirectorAndKMPAndItsRelativesHaveAnyInterestInTheEntityBeingRestructuring"]
[null,null,null,null,"Details of benefits",null,null,null,null,null,null,null,null,null,null,null,null,null,null,null,null,null,null,null,null,null,null,null,null,"DetailsOfBenefitsFromOtherRestructuring"]
[null,null,null,null,"Brief details of change in shareholding pattern (if any)of all entities",null,null,null,null,null,null,null,null,null,null,null,null,null,null,null,null,null,null,null,null,null,null,null,null,"BriefDetailsOfChangeInShareholdingPatternOfAllEntitiesForOtherRestructuring"]
[null,null,null,null,"Any other significant information (in brief)",null,null,null,null,null,null,null,null,null,null,null,null,null,null,null,null,null,null,null,null,null,null,null,null,"AnyOtherBriefSignificantInformationForOtherRestructuring"]

{"sheet":"Slump Sale","index":7,"n_rows":29,"n_cols":65,"rows_kept":29,"cut":false,"hidden":true,"merged":[[8,25,8,26],[8,27,8,28],[8,29,8,30],[7,15,7,22],[7,23,7,30],[8,15,8,16],[8,17,8,18],[8,19,8,20],[8,21,8,22],[8,23,8,24],[8,11,8,12],[8,13,8,14],[6,4,6,8],[8,7,8,8],[8,9,8,10],[7,4,9,4],[7,5,9,5],[7,6,9,6],[7,7,7,14]]}
[null,null,null,null,null,null,null,null,0,null,null,null,null,null,null,null,null,null,null,null,null,null,null,null,null,null,null,null,null,null,"Yes","No",null,null,"Transferor","Transfere",null,"Cash","Shares","Others","Cash and Shares","All of the above"]
[null,null,null,null,null,null,null,null,null,null,null,null,null,null,null,null,null,null,null,null,null,null,null,null,null,null,null,null,{"$f":"IF(VALUE(F13)=30,$AJ$22:$AJ$25,IF(VALUE(F13)=31,$AJ$14:$AJ$20,$AJ$3:$AJ$12))","v":{"$error":"#VALUE!"}},null,"Unit","Division","Subsidiary","Others","01","02","03","04","05","06","07","08","09","10","11","12","13","14","15","16","17","18","19","20","21","22","23","24","25","26","27","28","29","30","31"]
[null,null,null,null,null,null,null,null,null,null,null,null,null,null,null,null,null,null,null,null,null,null,null,null,null,null,null,null,null,null,"Demerged","Resulting",null,null,"01","02","03","04","05","06","07","08","09","10","11","12",null,"01","03","05","07","08","10","12",null,"04","06","09","11"]
[null,null,null,null,"NameOfUnitOrDivisionOrSubsidiaryOfTheListedEntity","TypeOfUnitOrDivisionOrSubsidiaryOfTheListedEntity","AreaOfBusinessOfTheSlumpSaleEntities","PreviousYearTurnoverOfUnitOrDivisionOrSubsidiaryOfTheListedEntity","PreviousYearPercentageOfTurnoverOfUnitOrDivisionOrSubsidiaryOfTheListedEntity","PreviousYearRevenueOfUnitOrDivisionOrSubsidiaryOfTheListedEntity","PreviousYearPercentageOfRevenueOfUnitOrDivisionOrSubsidiaryOfTheListedEntity","PreviousYearIncomeOfUnitOrDivisionOrSubsidiaryOfTheListedEntity","PreviousYearPercentageOfIncomeOfUnitOrDivisionOrSubsidiaryOfTheListedEntity","PreviousYearNetWorthOfUnitOrDivisionOrSubsidiaryOfTheListedEntity","PreviousYearPercentageOfNetWorthOfUnitOrDivisionOrSubsidiaryOfTheListedEntity","NumberOfSharesUnderPromoterAndPromoterGroupCategoryPreEvent","PercentageOfSharesUnderPromoterAndPromoterGroupCategoryPreEvent","NumberOfSharesUnderPublicCategoryPreEvent","PercentageOfSharesUnderPublicCategoryPreEvent","NumberOfSharesUnderOtherCategoryPreEvent","PercentageOfSharesUnderOtherCategoryPreEvent","TotalNumberOfSharesPreEvent","TotalPercentageOfSharesPreEvent","NumberOfSharesUnderPromoterAndPromoterGroupCategoryPostEvent","PercentageOfSharesUnderPromoterAndPromoterGroupCategoryPostEvent","NumberOfSharesUnderPublicCategoryPostEvent","PercentageOfSharesUnderPublicCategoryPostEvent","NumberOfSharesUnderOtherCategoryPostEvent","PercentageOfSharesUnderOtherCategoryPostEvent","TotalNumberOfSharesPostEvent","TotalPercentageOfSharesPostEvent",null,null,null,2020,2021,2022,2023,2024,2025,2026,2027,2028,2029,2030,2031]
[]
[]
[null,null,null,null,"Slump Sale"]
[null,null,null,null,"Name of unit or division or Subsidiary of the listed entity","Type*","Area of business of the slump sale entity(ies)","During the last financial year",null,null,null,null,null,null,null,"Details of Pre Shareholding",null,null,null,null,null,null,null,"Details of Post Shareholding"]
[null,null,null,null,null,null,null,"Turnover",null,"Revenue",null,"Income",null,"Net Worth",null,"Promoter and Promoter Group",null,"Public ",null,"Others ",null,"Total",null,"Promoter and Promoter Group",null,"Public ",null,"Others ",null,"Total"]
[null,null,null,null,null,null,null,"Amount*","Percentage*","Amount*","Percentage*","Amount*","Percentage*","Amount*","Percentage*","Number Of share*","Percentage*","Number Of share*","Percentage*","Number Of share*","Percentage*","Number Of share*","Percentage*","Number Of share*","Percentage*","Number Of share*","Percentage*","Number Of share*","Percentage*","Number Of share*","Percentage*"]
[]
[]
[null,null,null,null,"Date on which the agreement for sale has been entered into*",null,null,null,null,null,null,null,null,null,null,null,null,null,null,null,null,null,null,null,null,null,null,null,null,null,null,null,null,null,"DateOnWhichTheAgreementForSaleHasBeenEnteredIntoForSlumpSaleEvent"]
[null,null,null,null,"The expected date of completion of Slump Sale*",null,null,null,null,null,null,null,null,null,null,null,null,null,null,null,null,null,null,null,null,null,null,null,null,null,null,null,null,null,"TheExpectedDateOfCompletionOfSlumpSaleEvent"]
[null,null,null,null,"Consideration received from such Slump Sale*",null,null,null,null,null,null,null,null,null,null,null,null,null,null,null,null,null,null,null,null,null,null,null,null,null,null,null,null,null,"NatureOfConsiderationForSlumpSaleEvent"]
[null,null,null,null,"Details of consideration",null,null,null,null,null,null,null,null,null,null,null,null,null,null,null,null,null,null,null,null,null,null,null,null,null,null,null,null,null,"DetailsOfConsiderationForSlumpSaleEvent"]
[null,null,null,null,"Brief details of buyers",null,null,null,null,null,null,null,null,null,null,null,null,null,null,null,null,null,null,null,null,null,null,null,null,null,null,null,null,null,"BriefDetailsOfBuyersSlumpSaleEvent"]
[null,null,null,null,"Whether the promoter/ promoter group/ group/associate/holding/subsidiary companies/ Director&KMP and its relatives have any interest in the entity being acquired?*",null,null,null,null,null,null,null,null,null,null,null,null,null,null,null,null,null,null,null,null,null,null,null,null,null,null,null,null,null,"WhetherThePromoterOrPromoterGroupOrGroupOrAssociateOrHoldingOrSubsidiaryCompaniesOrDirectorAndKMPAndItsRelativesHaveAnyInterestInTheEntityBeingSlumpSale"]
[null,null,null,null,"Nature of interest and details thereof ",null,null,null,null,null,null,null,null,null,null,null,null,null,null,null,null,null,null,null,null,null,null,null,null,null,null,null,null,null,"NatureOfInterestAndDetailsThereofForSlumpSaleEvent"]
[null,null,null,null,"Whether the transaction would fall within Related Party Transactions?*",null,null,null,null,null,null,null,null,null,null,null,null,null,null,null,null,null,null,null,null,null,null,null,null,null,null,null,null,null,"WhetherSlumpSaleEventWouldFallWithinRelatedPartyTransactions"]
[null,null,null,null,"Date of board meeting in which RPT approval taken",null,null,null,null,null,null,null,null,null,null,null,null,null,null,null,null,null,null,null,null,null,null,null,null,null,null,null,null,null,"DateOfBoardMeetingInWhichRPTApprovalTakenForSlumpSaleEvent"]
[null,null,null,null,"Date of audit committee meeting in which RPT approval taken",null,null,null,null,null,null,null,null,null,null,null,null,null,null,null,null,null,null,null,null,null,null,null,null,null,null,null,null,null,"DateOfAuditCommitteeMeetingInWhichRPTApprovalTakenForSlumpSaleEvent"]
[null,null,null,null,"Whether the said RPT is material?*",null,null,null,null,null,null,null,null,null,null,null,null,null,null,null,null,null,null,null,null,null,null,null,null,null,null,null,null,null,"WhetherSlumpSaleEventRPTIsMaterial"]
[null,null,null,null,"Date of approval from shareholders",null,null,null,null,null,null,null,null,null,null,null,null,null,null,null,null,null,null,null,null,null,null,null,null,null,null,null,null,null,"DateOfApprovalOfSlumpSaleEventFromShareholders"]
[null,null,null,null,"Whether the same is done at “arms length” ?*",null,null,null,null,null,null,null,null,null,null,null,null,null,null,null,null,null,null,null,null,null,null,null,null,null,null,null,null,null,"WhetherSlumpSaleEventIsDoneAtArmsLength"]
[null,null,null,null,"Whether special resolution is passed/proposed?",null,null,null,null,null,null,null,null,null,null,null,null,null,null,null,null,null,null,null,null,null,null,null,null,null,null,null,null,null,"WhetherSpecialResolutionIsPassedOrProposedForSlumpSaleEvent"]
[null,null,null,null,"Date of Special Resolution",null,null,null,null,null,null,null,null,null,null,null,null,null,null,null,null,null,null,null,null,null,null,null,null,null,null,null,null,null,"DateOfSpecialResolutionForSlumpSaleEvent"]
[null,null,null,null,"Brief details of change in shareholding pattern (if any)-",null,null,null,null,null,null,null,null,null,null,null,null,null,null,null,null,null,null,null,null,null,null,null,null,null,null,null,null,null,"BriefDetailsOfChangeInShareholdingPatternOfAllEntitiesForSlumpSaleEvent"]
[null,null,null,null,"Any other significant information (in brief)",null,null,null,null,null,null,null,null,null,null,null,null,null,null,null,null,null,null,null,null,null,null,null,null,null,null,null,null,null,"AnyOtherBriefSignificantInformationForSlumpSaleEvent"]

{"sheet":"Incorporation","index":8,"n_rows":33,"n_cols":37,"rows_kept":33,"cut":false,"hidden":true,"merged":[[6,4,6,5]]}
[null,null,null,null,null,null,null,null,null,null,null,null,"Material Subsidiary","Cost/Price"]
[null,null,null,null,null,null,null,null,null,null,null,null,"Subsidiary","Number of Shares",null,null,null,null,null,null,null,null,null,null,null,null,null,null,null,null,null,null,null,null,"01","01",2020]
[null,null,null,null,null,null,null,null,null,null,null,null,"Step Down Subsidiary",null,null,null,null,null,null,null,null,null,null,null,null,null,null,null,null,null,null,null,null,null,"02","02",{"$f":"+AK2+1","v":2021}]
[null,null,null,null,null,null,null,null,null,null,null,null,"Others",null,null,null,null,null,null,null,null,null,null,null,null,null,null,null,null,null,null,null,null,null,"03","03",{"$f":"+AK3+1","v":2022}]
[null,null,null,null,null,null,null,null,null,null,null,null,null,null,null,null,null,null,null,null,null,null,null,null,null,null,null,null,null,null,null,null,null,null,"04","04",2023]
[null,null,null,null,null,null,null,null,null,null,null,null,null,null,null,null,null,null,null,null,null,null,null,null,null,null,null,null,null,null,null,null,null,null,"05","05",2024]
[null,null,null,null,"Incorporation",null,null,null,null,null,null,null,null,null,null,null,null,null,null,null,null,null,null,null,null,null,null,null,null,null,null,null,null,null,"06","06",2025]
[null,null,null,null,"Name of Holding Company*",null,null,null,null,null,null,null,null,null,"NameOfHoldingCompany",null,null,null,null,null,null,null,null,null,null,null,null,null,null,null,null,null,null,null,"07","07",2026]
[null,null,null,null,"Relationship of Holding Company with the listed entity*",null,null,null,null,null,null,null,null,null,"RelationshipOfHoldingCompanyWithTheListedEntity",null,null,null,null,null,null,null,null,null,null,null,null,null,null,null,null,null,null,null,"08","08",2027]
[null,null,null,null,"Name of the incorporated entity*",null,null,null,null,null,null,null,null,null,"NameOfTheIncorporatedEntity",null,null,null,null,null,null,null,null,null,null,null,null,null,null,null,null,null,null,null,"09","09",2028]
[null,null,null,null,"Industry to which the entity being incorporated belongs*",null,null,null,null,null,null,null,null,null,"IndustryToWhichTheEntityBeingIncorporatedBelongs",null,null,null,null,null,null,null,null,null,null,null,null,null,null,null,null,null,null,null,"10","10",2029]
[null,null,null,null,"Brief background about the entity incorporated in terms of products/line of business*",null,null,null,null,null,null,null,null,null,"BriefBackgroundAboutTheEntityIncorporatedInTermsOfProductsOrLineOfBusiness",null,null,null,null,null,null,null,null,null,null,null,null,null,null,null,null,null,null,null,"11","11",2030]
[null,null,null,null,"Cost of subscription or the price at which the shares are subscribed*",null,null,null,null,null,null,null,null,null,"CostOfSubscriptionOrThePriceAtWhichTheSharesAreSubscribed",null,null,null,null,null,null,null,null,null,null,null,null,null,null,null,null,null,null,null,"12","12",2031]
[null,null,null,null,"Details of cost of subscription or the price at which the shares are subscribed*",null,null,null,null,null,null,null,null,null,"DetailsOfCostOfSubscriptionOrThePriceAtWhichTheSharesAreSubscribed"]
[null,null,null,null,"Percentage of shareholding / control*",null,null,null,null,null,null,null,null,null,"PercentageOfShareholdingOrControl",null,null,null,null,null,null,null,null,null,null,null,null,null,null,null,null,null,null,null,"13"]
[null,null,null,null,"Date of incorporation*",null,null,null,null,null,null,null,null,null,"DateOfIncorporation",null,null,null,null,null,null,null,null,null,null,null,null,null,null,null,null,null,null,null,"14","01"]
[null,null,null,null,"Country in which the entity is incorporated*",null,null,null,null,null,null,null,null,null,"CountryInWhichTheEntityIsIncorporated",null,null,null,null,null,null,null,null,null,null,null,null,null,null,null,null,null,null,null,"15","03"]
[null,null,null,null,"Any other significant information (in brief)*",null,null,null,null,null,null,null,null,null,"AnyOtherBriefSignificantInformationForIncorporationEvent",null,null,null,null,null,null,null,null,null,null,null,null,null,null,null,null,null,null,null,"16","05"]
[null,null,null,null,null,null,null,null,null,null,null,null,null,null,null,null,null,null,null,null,null,null,null,null,null,null,null,null,null,null,null,null,null,null,"17","07"]
[null,null,null,null,null,null,null,null,null,null,null,null,null,null,null,null,null,null,null,null,null,null,null,null,null,null,null,null,null,null,null,null,null,null,"18","08"]
[null,null,null,null,null,null,null,null,null,null,null,null,null,null,null,null,null,null,null,null,null,null,null,null,null,null,null,null,null,null,null,null,null,null,"19","10"]
[null,null,null,null,null,null,null,null,null,null,null,null,null,null,null,null,null,null,null,null,null,null,null,null,null,null,null,null,null,null,null,null,null,null,"20","12"]
[null,null,null,null,null,null,null,null,null,null,null,null,null,null,null,null,null,null,null,null,null,null,null,null,null,null,null,null,null,null,null,null,null,null,"21"]
[null,null,null,null,null,null,null,null,null,null,null,null,null,null,null,null,null,null,null,null,null,null,null,null,null,null,null,null,null,null,null,null,null,null,"22","04"]
[null,null,null,null,null,null,null,null,null,null,null,null,null,null,null,null,null,null,null,null,null,null,null,null,null,null,null,null,null,null,null,null,null,null,"23","06"]
[null,null,null,null,null,null,null,null,null,null,null,null,null,null,null,null,null,null,null,null,null,null,null,null,null,null,null,null,null,null,null,null,null,null,"24","09"]
[null,null,null,null,null,null,null,null,null,null,null,null,null,null,null,null,null,null,null,null,null,null,null,null,null,null,null,null,null,null,null,null,null,null,"25","11"]
[null,null,null,null,null,null,null,null,null,null,null,null,null,null,null,null,null,null,null,null,null,null,null,null,null,null,null,null,null,null,null,null,null,null,"26"]
[null,null,null,null,null,null,null,null,null,null,null,null,null,null,null,null,null,null,null,null,null,null,null,null,null,null,null,null,null,null,null,null,null,null,"27"]
[null,null,null,null,null,null,null,null,null,null,null,null,null,null,null,null,null,null,null,null,null,null,null,null,null,null,null,null,null,null,null,null,null,null,"28"]
[null,null,null,null,null,null,null,null,null,null,null,null,null,null,null,null,null,null,null,null,null,null,null,null,null,null,null,null,null,null,null,null,null,null,"29"]
[null,null,null,null,null,null,null,null,null,null,null,null,null,null,null,null,null,null,null,null,null,null,null,null,null,null,null,null,null,null,null,null,null,null,"30"]
[null,null,null,null,null,null,null,null,null,null,null,null,null,null,null,null,null,null,null,null,null,null,null,null,null,null,null,null,null,null,null,null,null,null,"31"]

{"sheet":"Update","index":9,"n_rows":32,"n_cols":37,"rows_kept":32,"cut":false,"hidden":true,"merged":[[6,4,6,5]]}
[null,null,null,null,null,null,null,null,null,null,null,"Transaction Completed","Reason for cancellation"]
[null,null,null,null,null,null,null,null,null,null,null,"Transaction Delayed","Any Liability on listed entity",null,null,null,null,null,null,null,null,null,null,null,null,null,null,null,null,null,null,null,null,null,"01","01",2020]
[null,null,null,null,null,null,null,null,null,null,null,"Transaction Cancellation",null,null,null,null,null,null,null,null,null,null,null,null,null,null,null,null,null,null,null,null,null,null,"02","02",{"$f":"+AK2+1","v":2021}]
[null,null,null,null,null,null,null,null,null,null,null,"Transaction Modification",null,null,null,null,null,null,null,null,null,null,null,null,null,null,null,null,null,null,null,null,null,null,"03","03",{"$f":"+AK3+1","v":2022}]
[null,null,null,null,null,null,null,null,null,null,null,"Others",null,null,null,null,null,null,null,null,null,null,null,null,null,null,null,null,null,null,null,null,null,null,"04","04",2023]
[null,null,null,null,null,null,null,null,null,null,null,null,null,null,null,null,null,null,null,null,null,null,null,null,null,null,null,null,null,null,null,null,null,null,"05","05",2024]
[null,null,null,null,"Update",null,null,null,null,null,null,null,null,null,null,null,null,null,null,null,null,null,null,null,null,null,null,null,null,null,null,null,null,null,"06","06",2025]
[null,null,null,null,"Brief details of Initial Announcement*",null,null,null,null,null,null,null,null,null,"BriefDetailsOfInitialAnnouncement",null,null,null,null,null,null,null,null,null,null,null,null,null,null,null,null,null,null,null,"07","07",2026]
[null,null,null,null,"Reason for Update*",null,null,null,null,null,null,null,null,null,"ReasonForUpdate",null,null,null,null,null,null,null,null,null,null,null,null,null,null,null,null,null,null,null,"08","08",2027]
[null,null,null,null,"Transaction Completed",null,null,null,null,null,null,null,null,null,"TransactionCompleted",null,null,null,null,null,null,null,null,null,null,null,null,null,null,null,null,null,null,null,"09","09",2028]
[null,null,null,null,"Amount of transaction completed",null,null,null,null,null,null,null,null,null,"AmountOfTransactionCompleted",null,null,null,null,null,null,null,null,null,null,null,null,null,null,null,null,null,null,null,"10","10",2029]
[null,null,null,null,"Date of transaction completed",null,null,null,null,null,null,null,null,null,"DateOfTransactionCompleted",null,null,null,null,null,null,null,null,null,null,null,null,null,null,null,null,null,null,null,"11","11",2030]
[null,null,null,null,"Percentage of transaction completed",null,null,null,null,null,null,null,null,null,"PercentageOfTransactionCompleted",null,null,null,null,null,null,null,null,null,null,null,null,null,null,null,null,null,null,null,"12","12",2031]
[null,null,null,null,"Transaction Delayed",null,null,null,null,null,null,null,null,null,"TransactionDelayed",null,null,null,null,null,null,null,null,null,null,null,null,null,null,null,null,null,null,null,"13"]
[null,null,null,null,"Initial date of completion",null,null,null,null,null,null,null,null,null,"InitialDateOfCompletion",null,null,null,null,null,null,null,null,null,null,null,null,null,null,null,null,null,null,null,"14","01"]
[null,null,null,null,"Revised date",null,null,null,null,null,null,null,null,null,"RevisedDate",null,null,null,null,null,null,null,null,null,null,null,null,null,null,null,null,null,null,null,"15","03"]
[null,null,null,null,"Reason for delay",null,null,null,null,null,null,null,null,null,"ReasonForDelay",null,null,null,null,null,null,null,null,null,null,null,null,null,null,null,null,null,null,null,"16","05"]
[null,null,null,null,"Transaction Cancellation",null,null,null,null,null,null,null,null,null,"TransactionCancellation",null,null,null,null,null,null,null,null,null,null,null,null,null,null,null,null,null,null,null,"17","07"]
[null,null,null,null,"Reason for cancellation",null,null,null,null,null,null,null,null,null,"ReasonForCancellation",null,null,null,null,null,null,null,null,null,null,null,null,null,null,null,null,null,null,null,"18","08"]
[null,null,null,null,"Any Liability on listed entity",null,null,null,null,null,null,null,null,null,"AnyLiabilityOnListedEntity",null,null,null,null,null,null,null,null,null,null,null,null,null,null,null,null,null,null,null,"19","10"]
[null,null,null,null,"Transaction Modification",null,null,null,null,null,null,null,null,null,"TransactionModification",null,null,null,null,null,null,null,null,null,null,null,null,null,null,null,null,null,null,null,"20","12"]
[null,null,null,null,"Others",null,null,null,null,null,null,null,null,null,"OtherUpdates",null,null,null,null,null,null,null,null,null,null,null,null,null,null,null,null,null,null,null,"21"]
[null,null,null,null,"Any other significant information (in brief)",null,null,null,null,null,null,null,null,null,"AnyOtherBriefSignificantInformationForAnnouncementUpdate",null,null,null,null,null,null,null,null,null,null,null,null,null,null,null,null,null,null,null,"22","04"]
[null,null,null,null,"Remarks (website dissemination)",null,null,null,null,null,null,null,null,null,"RemarksForWebsiteDisseminationForAnnouncementUpdate",null,null,null,null,null,null,null,null,null,null,null,null,null,null,null,null,null,null,null,"23","06"]
[null,null,null,null,"Remarks for Exchange (not for Website Dissemination)",null,null,null,null,null,null,null,null,null,"RemarksForExchangeNotForWebsiteDisseminationForAnnouncementUpdate",null,null,null,null,null,null,null,null,null,null,null,null,null,null,null,null,null,null,null,"24","09"]
[null,null,null,null,null,null,null,null,null,null,null,null,null,null,null,null,null,null,null,null,null,null,null,null,null,null,null,null,null,null,null,null,null,null,"25","11"]
[null,null,null,null,null,null,null,null,null,null,null,null,null,null,null,null,null,null,null,null,null,null,null,null,null,null,null,null,null,null,null,null,null,null,"26"]
[null,null,null,null,null,null,null,null,null,null,null,null,null,null,null,null,null,null,null,null,null,null,null,null,null,null,null,null,null,null,null,null,null,null,"27"]
[null,null,null,null,null,null,null,null,null,null,null,null,null,null,null,null,null,null,null,null,null,null,null,null,null,null,null,null,null,null,null,null,null,null,"28"]
[null,null,null,null,null,null,null,null,null,null,null,null,null,null,null,null,null,null,null,null,null,null,null,null,null,null,null,null,null,null,null,null,null,null,"29"]
[null,null,null,null,null,null,null,null,null,null,null,null,null,null,null,null,null,null,null,null,null,null,null,null,null,null,null,null,null,null,null,null,null,null,"30"]
[null,null,null,null,null,null,null,null,null,null,null,null,null,null,null,null,null,null,null,null,null,null,null,null,null,null,null,null,null,null,null,null,null,null,"31"]

{"sheet":"Taxonomy","index":10,"n_rows":275,"n_cols":5,"rows_kept":275,"cut":false,"hidden":true,"merged":[]}
["Element Name","Label Name","Type","Period","Validation Messege"]
["ScripCode","BSE Scrip Code*","in-capmkt-types:ScripCode","instant","1) This is a mandatory field.\n2) Please enter 6 digit Scrip Code."]
["NameOfTheCompany","Name of the Company*","xbrli:stringItemType","instant"]
["NSESymbol","NSE Symbol*","xbrli:stringItemType","instant"]
["MSEISymbol","MSEI Symbol*","xbrli:stringItemType","instant"]
["ISIN","ISIN*","in-capmkt-types:ISINNumber","instant","1) This is a mandatory field.\n2) Please enter valid ISIN Number."]
["TypeOfAnnouncementPertainingToRegulation30Restructuring","Type of Announcement*","in-capmkt-types:NewOrUpdate","duration","1) This is a mandatory field.\n2) Please select value from drop down list."]
["EventOfAnnouncementPertainingToRegulation30Restructuring","Event","in-capmkt-types:RestructuringEvent","duration","1) This is a mandatory field.\n2) Please select value from drop down list."]
["DateOfEventOfAnnouncementPertainingToRegulation30Restructuring","Date of event*","xbrli:dateItemType","instant","1) This is mandatory field.\n2) Please enter date in DD-MM-YYYY format."]
["DateOfInitialAnnouncement","Date of initial announcement","xbrli:dateItemType","instant","1) This is mandatory field If \"Update\" is selected in \"Type of Annoucement\".\n2) Please enter date in DD-MM-YYYY format."]
["DateOfLatestAnnouncement","Date of latest announcement","xbrli:dateItemType","instant","1) This is mandatory field If \"Update\" is selected in \"Type of Annoucement\".\n2) Please enter date in DD-MM-YYYY format."]
["RemarksForWebsiteDissemination","Remarks (website dissemination)","xbrli:stringItemType","instant"]
["RemarksForExchangeNotForWebsiteDissemination","Remarks for Exchange (not for Website Dissemination)","xbrli:stringItemType","instant"]
["DateOfReport",null,"xbrli:dateItemType","instant"]
[]
[null,"Acquisition"]
["NameOfAcquirer","Name of acquirer*","xbrli:stringItemType","instant"]
["RelationshipOfAcquirerWithTheListedEntity","Relationship of acquirer with the listed entity*","in-capmkt-types:RelationshipWithListedEntity","duration","1) This is a mandatory field.\n2) Please select value from drop down list."]
["DetailsOfOtherRelationWithTheListedEntity","Details of other relation with acquirer","xbrli:stringItemType","instant","This is mandatory field if \"Others\" Selected in \"Relationship of acquirer with the listed entity\"."]
["NameOfTheTargetEntity","Name of the target entity","xbrli:stringItemType","instant"]
["TurnoverOfTargetEntity","Turnover ( In crore)*","xbrli:monetaryItemType","duration","1) This is mandatory field.\n2) Please enter only amount."]
["ProfitAfterTaxOfTargetEntity","PAT ( In crore)*","xbrli:monetaryItemType","duration","1) This is mandatory field.\n2) Please enter only amount."]
["NetWorthOfTargetEntity","Networth ( In crore)*","xbrli:monetaryItemType","duration","1) This is mandatory field.\n2) Please enter only amount."]
["OtherFinancialParameterOfTargetEntity","Other","xbrli:stringItemType","instant"]
["WhetherTheAcquisitionWouldFallWithinRelatedPartyTransactions","Whether the acquisition would fall within Related Party Transaction(s)?*","xbrli:booleanItemType","duration","1) This is a mandatory field.\n2) Please select value from drop down list."]
["DateOfBoardMeetingInWhichRPTApprovalTakenForAcquisitionEvent","Date of board meeting in which RPT approval taken","xbrli:dateItemType","instant","1) This is mandatory field if \" yes\" selected in \"Whether the acquisition would fall within Related Party Transaction(s)? (\"RPT\")\" field.\n2) Please enter date in \"DD-MM-YYYY\" format."]
["DateOfAuditCommitteeMeetingInWhichRPTApprovalTakenForAcquisitionEvent","Date of audit committee meeting in which RPT approval taken","xbrli:dateItemType","instant","1) This is a mandatory field.\n2) Please enter date in \"DD-MM-YYYY\" format."]
["WhetherAcquisitionEventRPTIsMaterial","Whether the said RPT is material?*","xbrli:booleanItemType","duration","1) This is a mandatory field.\n2) Please select value from drop down list."]
["DateOfApprovalFromShareholdersForAcquisitionEvent","Date of approval from shareholders","xbrli:dateItemType","instant","1) This is mandatory field if \" yes\" selected in \"Whether the said RPT is material?\" field.\n2) Please enter date in \"DD-MM-YYYY\" format."]
["WhetherThePromoterOrPromoterGroupOrGroupOrAssociateOrHoldingOrSubsidiaryCompaniesOrDirectorAndKMPAndItsRelativesHaveAnyInterestInTheEntityBeingAcquired","Whether the promoter / promoter group / group / associate / holding /  subsidiary companies / Director&KMP and its relatives have any interest in the entity being acquired?*","xbrli:booleanItemType","duration","1) This is a mandatory field.\n2) Please select value from drop down list."]
["NatureOfInterestAndDetailsThereofForAcquisitionEvent","Nature of interest and details thereof ","xbrli:stringItemType","instant","1) This is mandatory field if \" yes\" selected in \"Whether the promoter/ promoter group/ group/associate/holding/ subsidiary companies/ Director&KMP and its relatives have any interest in the entity being acquired?\" field."]
["WhetherAcquisitionEventIsDoneAtArmsLength","Whether the same is done at “arms length”?*","xbrli:booleanItemType","duration","1) This is a mandatory field.\n2) Please select value from drop down list."]
["WhetherSpecialResolutionIsPassedOrProposedForAcquisitionEvent","Whether special resolution is passed/proposed?","xbrli:booleanItemType","duration","1) This is a mandatory field.\n2) Please select value from drop down list."]
["DateOfSpecialResolutionForAcquisitionEvent","Date of Special Resolution","xbrli:dateItemType","instant","1) This is mandatory field if \" yes\" selected in \"Whether the same is done at “arms length”\" field.\n2) Please enter date in \"DD-MM-YYYY\" format."]
["IndustryToWhichTheEntityBeingAcquiredBelongs","Industry to which the entity being acquired belongs*","xbrli:stringItemType","instant"]
["ObjectsAndEffectsOfAcquisitionIncludingButNotLimitedToDisclosureOfReasonsForAcquisitionOfTargetEntityIfItsBusinessIsOutsideTheMainLineOfBusinessOfTheListedEntity","Objects and effects of acquisition\n(including but not limited to, disclosure of reasons for acquisition of target entity, if its business is outside the main line of business of the listed entity)*","xbrli:stringItemType","instant"]
["WhetherAnyGovernmentalOrRegulatoryApprovalsRequiredForTheAcquisition","Whether any governmental or regulatory approvals required for the acquisition?*","in-capmkt-types:DeclarationType","duration","1) This is a mandatory field.\n2) Please select value from drop down list."]
["ProvideBriefDetailsOfAnyGovernmentalOrRegulatoryApprovalsForTheAcquisition","Provide brief details of any governmental or regulatory approvals","xbrli:stringItemType","instant","1) This is mandatory field if \" yes\" selected in \"Whether any governmental or regulatory approvals required for the acquisition?\" field."]
["WhetherTheAcquisitionTransactionWillBeInTranches","Whether the transaction will be in tranches*","xbrli:booleanItemType","duration","1) This is a mandatory field.\n2) Please select value from drop down list."]
["IndicativeTimePeriodForCompletionOfTheAcquisition","Indicative time period for completion of the acquisition*","xbrli:stringItemType","instant"]
["NatureOfConsiderationForAcquisitionEvent","Nature of consideration- whether cash consideration or share swap and details of the same*","in-capmkt-types:ConsiderationNature","duration","1) This is a mandatory field.\n2) Please select value from drop down list."]
["DetailsOfConsiderationForAcquisitionEvent","Details of consideration","xbrli:stringItemType","instant","This is mandatory field if \" others\" or \"All of above\" selected."]
["CostOfAcquisitionOrThePriceAtWhichTheSharesAreAcquired","Cost of acquisition or the price at which the shares are acquired (Total value) ( Rs in Crore)*","xbrli:monetaryItemType","duration","1) This is mandatory field.\n2) please enter only amount."]
["ExistingPercentageOfShareholdingHeldByAcquirer","Existing percentage of shareholding held by acquirer*","num:percentItemType","instant","1) This is mandatory field.\n2) please enter only number with %"]
["PercentageOfControlAcquired","Percentage of Control acquired","num:percentItemType","instant","Please enter only number with %"]
["PercentageOfAdditionalSharesAcquiredIfExistingHoldingPersists","Percentage of shares acquired (additional, if existing holding persists)","num:percentItemType","instant","Please enter only number with %"]
["BriefBackgroundAboutTheEntityAcquiredInTermsOfProductsLineOfBusinessAcquired","Brief background about the entity acquired in terms of products/line of business acquired*","xbrli:stringItemType","instant"]
["DateOfIncorporationForAcquisitionEvent","Date of incorporation","xbrli:dateItemType","instant","Please enter date in \"DD-MM-YYYY\""]
["DescriptionOfFinancialYear",null,"xbrli:stringItemType","instant"]
["Turnover","Amount of turnover\n(In Crore))","xbrli:monetaryItemType","duration","Please enter only number"]
["CountryInWhichTheAcquiredEntityHasPresence",null,"xbrli:stringItemType","instant"]
["AnyOtherBriefSignificantInformationForTheAcquisition",null,"xbrli:stringItemType","instant"]
[]
[]
[null,"Amalgamation OR Merger"]
["NameOfTheAmalgamatedEntity","Name of Entity","xbrli:stringItemType","instant"]
["TypeOfAmalgamatedEntity","Type of Entity*","in-capmkt-types:AmalgamatedEntityType","duration","1) This is a mandatory field.\n2) Please select value from drop down list."]
["RelationshipOfAmalgamatedEntityWithListedEntities","Relationship with listed entity(ies)*","in-capmkt-types:RelationshipWithListedEntity","duration","1) This is a mandatory field.\n2) Please select value from drop down list."]
["DetailsOfOtherRelationsOfAmalgamatedEntityWithListedEntities","Details of other relations","xbrli:stringItemType","instant"]
["BriefDetailsOfTurnoverOrSizeOrOtherDetailsOfAmalgamatedEntity","Details in brief such as, size, turnover etc","xbrli:stringItemType","instant"]
["NumberOfSharesUnderPromoterAndPromoterGroupCategoryPreEvent","Number of shares*","xbrli:sharesItemType","instant","1) This is a mandatory field.\n2) Please enter only number"]
["PercentageOfSharesUnderPromoterAndPromoterGroupCategoryPreEvent","Percentage*","num:percentItemType","instant","1) This is a mandatory field.\n2) Please enter only number with %"]
["NumberOfSharesUnderPublicCategoryPreEvent","Whether the Amalgamation/Merger would fall within Related Party Transaction(s)? (\"RPT\")*","xbrli:sharesItemType","instant","1) This is a mandatory field.\n2) Please select value from drop down list."]
["PercentageOfSharesUnderPublicCategoryPreEvent","Date of board meeting in which RPT approval taken","num:percentItemType","instant","1) This is mandatory field if \" yes\" selected in \"Whether the Amalgamation/Merger would fall within Related Party Transaction(s)? (\"RPT\")\" field.\n2) Please enter date in \"DD-MM-YYYY\""]
["NumberOfSharesUnderOtherCategoryPreEvent","Date of audit committee meeting in which RPT approval taken","xbrli:sharesItemType","instant","Please enter date in \"DD-MM-YYYY\""]
["PercentageOfSharesUnderOtherCategoryPreEvent","Whether the said RPT is material?*","num:percentItemType","instant","1) This is a mandatory field.\n2) Please select value from drop down list."]
["TotalNumberOfSharesPreEvent","Date of approval from shareholders","xbrli:sharesItemType","instant","1) This is mandatory field if \" yes\" selected in \"Whether the said RPT is material?\" field.\n2) Please enter date in \"DD-MM-YYYY\""]
["TotalPercentageOfSharesPreEvent","Whether the promoter/ promoter group/ group/associate/holding/subsidiary companies/ Director&KMP and its relatives have any interest in the entity being acquired?*","num:percentItemType","instant","1) This is a mandatory field.\n2) Please select value from drop down list."]
["NumberOfSharesUnderPromoterAndPromoterGroupCategoryPostEvent","Nature of interest and details thereof ","xbrli:sharesItemType","instant","1) This is mandatory field if \" yes\" selected in \"Whether the promoter/ promoter group/ group/associate/holding/subsidiary companies/ Director&KMP and its relatives have any interest in the entity being acquired?\" field."]
["PercentageOfSharesUnderPromoterAndPromoterGroupCategoryPostEvent","Whether the same is done at “arms length”*","num:percentItemType","instant","1) This is a mandatory field.\n2) Please select value from drop down list."]
["NumberOfSharesUnderPublicCategoryPostEvent","Date of Special Resolution","xbrli:sharesItemType","instant","1) This is mandatory field if \" yes\" selected in \"Whether the same is done at “arms length” \" field.\n2) Please enter date in \"DD-MM-YYYY\""]
["PercentageOfSharesUnderPublicCategoryPostEvent","Area of business of the entity(ies)*","num:percentItemType","instant"]
["NumberOfSharesUnderOtherCategoryPostEvent","Rationale for amalgamation/ merger*","xbrli:sharesItemType","instant"]
["PercentageOfSharesUnderOtherCategoryPostEvent","Consideration*","num:percentItemType","instant","1) This is a mandatory field.\n2) Please select value from drop down list."]
["TotalNumberOfSharesPostEvent","Details of consideration","xbrli:sharesItemType","instant","1) This is mandatory field if \"Others\" Or \"All of above\" selected in \"Consideration\" field."]
["TotalPercentageOfSharesPostEvent","Brief details of change in shareholding pattern (if any)of listed entity*","num:percentItemType","instant"]
["WhetherTheAmalgamationOrMergerWouldFallWithinRelatedPartyTransactions","Any other significant information (in brief)*","xbrli:booleanItemType","duration"]
["DateOfBoardMeetingForAmalgamationInWhichRPTApprovalTaken",null,"xbrli:dateItemType","instant"]
["DateOfAuditCommitteeMeetingForAmalgamationInWhichRPTApprovalTaken",null,"xbrli:dateItemType","instant"]
["WhetherAmalgamationOrMergerEventRPTIsMaterial",null,"xbrli:booleanItemType","duration"]
["DateOfApprovalOfAmalgamationOrMergerEventFromShareholders",null,"xbrli:dateItemType","instant"]
["WhetherThePromoterOrPromoterGroupOrGroupOrAssociateOrHoldingOrSubsidiaryCompaniesOrDirectorAndKMPAndItsRelativesHaveAnyInterestInTheEntityBeingAmalgamated",null,"xbrli:booleanItemType","duration"]
["NatureOfInterestAndDetailsThereofForAmalgamationOrMergerEvent",null,"xbrli:stringItemType","instant"]
["WhetherAmalgamationOrMergerIsDoneAtArmsLength",null,"xbrli:booleanItemType","duration"]
["WhetherSpecialResolutionIsPassedOrProposedForAmalgamationOrMergerEvent",null,"xbrli:booleanItemType","duration"]
["DateOfSpecialResolutionForAmalgamationOrMergerEvent",null,"xbrli:dateItemType","instant"]
["AreaOfBusinessOfTheEntitiesForAmalgamationOrMergerEvent",null,"xbrli:stringItemType","instant"]
["RationaleForAmalgamationOrMerger",null,"xbrli:stringItemType","instant"]
["NatureOfConsiderationForAmalgamationOrMerger",null,"in-capmkt-types:ConsiderationNature","duration"]
["DetailsOfConsiderationForAmalgamationOrMerger",null,"xbrli:stringItemType","instant"]
["BriefDetailsOfChangeInShareholdingPatternOfListedEntityForAmalgamationOrMerger",null,"xbrli:stringItemType","instant"]
["AnyOtherBriefSignificantInformationForAmalgamationOrMerger",null,"xbrli:stringItemType","instant"]
[]
[]
[]
[]
[null,"De-merger"]
["BriefDetailsOfTheDivisionsToBeDemerged","Brief details of the division(s) to be demerged*","xbrli:stringItemType","instant"]
["NameOfDemergedEntityOrDivision","Name of Entity","xbrli:stringItemType","instant"]
["TypeOfDemergedEntityOrDivision","Type of Entity*","in-capmkt-types:DemergedEntityType","duration","1) This is a mandatory field.\n2) Please select value from drop down list."]
["RelationshipOfDemergedEntityOrDivisionWithListedEntities","Relationship with listed entity(ies)*","in-capmkt-types:RelationshipWithListedEntity","duration","1) This is a mandatory field.\n2) Please select value from drop down list."]
["DetailsOfOtherRelationshipOfDemergedEntityOrDivisionWithListedEntities","Details of other relations","xbrli:stringItemType","instant"]
["TurnoverOfTheDemergedDivision","Turnover of the demerged division*","xbrli:monetaryItemType","duration"]
["PercentageToTheTotalTurnoverOfTheListedEntityInTheImmediatelyPrecedingFinancialYear","Percentage to the total turnover of the listed entity (filing this announcement) in the immediately preceding financial year/based on financials of  the last financial year*","num:percentItemType","instant","1) This is a mandatory field.\n2) Please enter only number with %"]
["NumberOfSharesUnderPromoterAndPromoterGroupCategoryPreEvent","Number of shares*","xbrli:sharesItemType","instant","1) This is a mandatory field.\n2) Please enter only number"]
["PercentageOfSharesUnderPromoterAndPromoterGroupCategoryPreEvent","Percentage*","num:percentItemType","instant","1) This is a mandatory field.\n2) Please enter only number with %"]
["NumberOfSharesUnderPublicCategoryPreEvent","Consideration*","xbrli:sharesItemType","instant","1) This is a mandatory field.\n2) Please select value from drop down list."]
["PercentageOfSharesUnderPublicCategoryPreEvent","Details of consideration","num:percentItemType","instant","1) This is mandatory field if \"Others\" Or \"All of above\" selected in \"Consideration\" field."]
["NumberOfSharesUnderOtherCategoryPreEvent","Rationale for demerger*","xbrli:sharesItemType","instant"]
["PercentageOfSharesUnderOtherCategoryPreEvent","Brief details of change in shareholding pattern (if any)of all entities","num:percentItemType","instant"]
["TotalNumberOfSharesPreEvent","Whether listing would be sought for the resulting entity*","xbrli:sharesItemType","instant","1) This is a mandatory field.\n2) Please select value from drop down list."]
["TotalPercentageOfSharesPreEvent","Any other significant information (in brief)","num:percentItemType","instant"]
["NumberOfSharesUnderPromoterAndPromoterGroupCategoryPostEvent",null,"xbrli:sharesItemType","instant"]
["PercentageOfSharesUnderPromoterAndPromoterGroupCategoryPostEvent",null,"num:percentItemType","instant"]
["NumberOfSharesUnderPublicCategoryPostEvent",null,"xbrli:sharesItemType","instant"]
["PercentageOfSharesUnderPublicCategoryPostEvent",null,"num:percentItemType","instant"]
["NumberOfSharesUnderOtherCategoryPostEvent",null,"xbrli:sharesItemType","instant"]
["PercentageOfSharesUnderOtherCategoryPostEvent",null,"num:percentItemType","instant"]
["TotalNumberOfSharesPostEvent",null,"xbrli:sharesItemType","instant"]
["TotalPercentageOfSharesPostEvent",null,"num:percentItemType","instant"]
["NatureOfConsiderationForDemerger",null,"in-capmkt-types:ConsiderationNature","duration"]
["DetailsOfConsiderationForDemerger",null,"xbrli:stringItemType","instant"]
["RationaleForDemerger",null,"xbrli:stringItemType","instant"]
["BriefDetailsOfChangeInShareholdingPatternOfAllEntitiesForDemerger",null,"xbrli:stringItemType","instant"]
["WhetherListingWouldBeSoughtForTheResultingEntity",null,"xbrli:booleanItemType","duration"]
["AnyOtherBriefSignificantInformationForDemerger",null,"xbrli:stringItemType","instant"]
[]
[]
[null,"Sale or disposal"]
["DetailsOfSaleOrDisposalUnitOrDivisionOrSubsidiaryOfTheListedEntity","Details of Unit/Division/Subsidiary","xbrli:stringItemType","instant"]
["TypeOfUnitOrDivisionOrSubsidiaryOfTheListedEntity","Type*","in-capmkt-types:SaleOrDisposalOrSlumpSaleEntityType","duration","1) This is a mandatory field.\n2) Please select value from drop down list."]
["NameOfUnitOrDivisionOrSubsidiaryOfTheListedEntity","Name of unit or division or Subsidiary of the listed entity","xbrli:stringItemType","instant"]
["PreviousYearTurnoverOfUnitOrDivisionOrSubsidiaryOfTheListedEntity","Number of shares*","xbrli:monetaryItemType","duration","1) This is a mandatory field.\n2) Please enter only number"]
["PreviousYearPercentageOfTurnoverOfUnitOrDivisionOrSubsidiaryOfTheListedEntity","Percentage*","num:percentItemType","duration","1) This is a mandatory field.\n2) Please enter only number with %"]
["PreviousYearRevenueOfUnitOrDivisionOrSubsidiaryOfTheListedEntity","Date on which the agreement for sale has been entered into*","xbrli:monetaryItemType","duration","1) This is a mandatory field.\n2) Please enter date in \"DD-MM-YYYY\" format"]
["PreviousYearPercentageOfRevenueOfUnitOrDivisionOrSubsidiaryOfTheListedEntity","The expected date of completion of sale/disposal*","num:percentItemType","duration","1) This is a mandatory field.\n2) Please enter date in \"DD-MM-YYYY\" format"]
["PreviousYearIncomeOfUnitOrDivisionOrSubsidiaryOfTheListedEntity","Consideration*","xbrli:monetaryItemType","duration","1) This is a mandatory field.\n2) Please select value from drop down list."]
["PreviousYearPercentageOfIncomeOfUnitOrDivisionOrSubsidiaryOfTheListedEntity","Details of consideration","num:percentItemType","duration","1) This is mandatory field if \"Others\" Or \"All of above\" selected in \"Consideration\" field."]
["PreviousYearNetWorthOfUnitOrDivisionOrSubsidiaryOfTheListedEntity","Brief details of buyers*","xbrli:monetaryItemType","duration"]
["PreviousYearPercentageOfNetWorthOfUnitOrDivisionOrSubsidiaryOfTheListedEntity","Whether the promoter/ promoter group/ group/associate/holding/subsidiary companies/ Director&KMP and its relatives have any interest in the entity being acquired?*","num:percentItemType","duration","1) This is a mandatory field.\n2) Please select value from drop down list."]
["DateOnWhichTheAgreementForSaleHasBeenEnteredInto","Nature of interest and details thereof ","xbrli:dateItemType","instant","1) This is mandatory field if \"Yes\" selected in \"Whether any of the buyers belong to the promoter/ promoter group/group companies/associate/holding/subsidiary companies/ Director&KMP and its relative\" field."]
["TheExpectedDateOfCompletionOfSaleOrDisposal","Whether the transaction would fall within Related Party Transactions?*","xbrli:dateItemType","instant","1) This is a mandatory field.\n2) Please select value from drop down list."]
["NatureOfConsiderationForSaleOrDisposal","Date of board meeting in which RPT approval taken","in-capmkt-types:ConsiderationNature","duration","1) This is mandatory field if \"Yes\" selected in \"Whether the transaction would fall within Related Party Transactions?\" field.\n2) Please enter date in \"DD-MM-YYYY\""]
["DetailsOfConsiderationForSaleOrDisposal","Date of audit committee meeting in which RPT approval taken","xbrli:stringItemType","instant","1) This is a mandatory field.\n2) Please enter date in \"DD-MM-YYYY\""]
["BriefDetailsOfBuyers","Whether the said RPT is material?*","xbrli:stringItemType","instant","1) This is a mandatory field.\n2) Please select value from drop down list."]
["WhetherThePromoterOrPromoterGroupOrGroupOrAssociateOrHoldingOrSubsidiaryCompaniesOrDirectorAndKMPAndItsRelativesHaveAnyInterestInTheEntityBeingSaleOrDisposed","Date of approval from shareholders","xbrli:booleanItemType","duration","1) This is mandatory field if \"Yes\" selected in \"Whether the said RPT is material? \" field.\n2) Please enter date in \"DD-MM-YYYY\""]
["NatureOfInterestAndDetailsThereofForSaleOrDisposal","Whether the same is done at “arms length” ?*","xbrli:stringItemType","instant","1) This is a mandatory field.\n2) Please select value from drop down list."]
["WhetherSaleOrDisposalWouldFallWithinRelatedPartyTransactions","Date of Special Resolution","xbrli:booleanItemType","duration","1) This is mandatory field if \"Yes\" selected in \"Whether the same is done at “arms length” ?\" field.\n2) Please enter date in \"DD-MM-YYYY\""]
["DateOfBoardMeetingInWhichRPTApprovalTakenForSaleOrDisposal","Any other significant information (in brief)","xbrli:dateItemType","instant"]
["DateOfAuditCommitteeMeetingInWhichRPTApprovalTakenForSaleOrDisposal",null,"xbrli:dateItemType","instant"]
["WhetherSaleOrDisposalEventRPTIsMaterial",null,"xbrli:booleanItemType","duration"]
["DateOfApprovalOfSaleOrDisposalEventFromShareholders",null,"xbrli:dateItemType","instant"]
["WhetherSaleOrDisposalEventIsDoneAtArmsLength",null,"xbrli:booleanItemType","duration"]
["WhetherSpecialResolutionIsPassedOrProposedForSaleOrDisposalEvent",null,"xbrli:booleanItemType","duration"]
["DateOfSpecialResolutionForSaleOrDisposalEvent",null,"xbrli:dateItemType","instant"]
["AnyOtherBriefSignificantInformationForSaleOrDisposal",null,"xbrli:stringItemType","instant"]
[]
[]
[]
[]
[null,"Other Restructuring"]
["NameOfRestructuringEntity","Name of Entity","xbrli:stringItemType","instant"]
["RestructuringEntityRelationshipWithListedEntity","Relationship with listed entity(ies)*","in-capmkt-types:RelationshipWithListedEntity","duration","1) This is a mandatory field.\n2) Please select value from drop down list."]
["DetailsOfOtherRelationsOfRestructuringEntityWithListedEntities","Details of other relations","xbrli:stringItemType","duration"]
["NumberOfSharesUnderPromoterAndPromoterGroupCategoryPreEvent","Number Of share*","xbrli:sharesItemType","instant","1) This is a mandatory field.\n2) Please enter only number"]
["PercentageOfSharesUnderPromoterAndPromoterGroupCategoryPreEvent","Percentage*","num:percentItemType","instant","1) This is a mandatory field.\n2) Please enter only number with %"]
["NumberOfSharesUnderPublicCategoryPreEvent","Details and reasons for restructuring*","xbrli:sharesItemType","instant"]
["PercentageOfSharesUnderPublicCategoryPreEvent","Quantitative effect of restructuring*","num:percentItemType","instant"]
["NumberOfSharesUnderOtherCategoryPreEvent","Qualitative effect of restructuring*","xbrli:sharesItemType","instant"]
["PercentageOfSharesUnderOtherCategoryPreEvent","Whether the promoter/ promoter group/ group/associate/holding/subsidiary companies/ Director&KMP and its relatives have any interest in the entity being acquired?*","num:percentItemType","instant","1) This is a mandatory field.\n2) Please select value from drop down list."]
["TotalNumberOfSharesPreEvent","Details of benefits","xbrli:sharesItemType","instant","1) This is mandatory field if \"Yes\" selected in \"Whether any of the buyers belong to the promoter/ promoter group/group companies/associate/holding/subsidiary companies/ Director&KMP and its relative\" field."]
["TotalPercentageOfSharesPreEvent","Brief details of change in shareholding pattern (if any)of all entities","num:percentItemType","instant"]
["NumberOfSharesUnderPromoterAndPromoterGroupCategoryPostEvent","Any other significant information (in brief)","xbrli:sharesItemType","instant"]
["PercentageOfSharesUnderPromoterAndPromoterGroupCategoryPostEvent",null,"num:percentItemType","instant"]
["NumberOfSharesUnderPublicCategoryPostEvent",null,"xbrli:sharesItemType","instant"]
["PercentageOfSharesUnderPublicCategoryPostEvent",null,"num:percentItemType","instant"]
["NumberOfSharesUnderOtherCategoryPostEvent",null,"xbrli:sharesItemType","instant"]
["PercentageOfSharesUnderOtherCategoryPostEvent",null,"num:percentItemType","instant"]
["TotalNumberOfSharesPostEvent",null,"xbrli:sharesItemType","instant"]
["TotalPercentageOfSharesPostEvent",null,"num:percentItemType","instant"]
["DetailsAndReasonsForOtherRestructuring",null,"xbrli:stringItemType","instant"]
["QuantitativeEffectOfOtherRestructuring",null,"xbrli:stringItemType","instant"]
["QualitativeEffectOfOtherRestructuring",null,"xbrli:stringItemType","instant"]
["WhetherThePromoterOrPromoterGroupOrGroupOrAssociateOrHoldingOrSubsidiaryCompaniesOrDirectorAndKMPAndItsRelativesHaveAnyInterestInTheEntityBeingRestructuring",null,"xbrli:booleanItemType","duration"]
["DetailsOfBenefitsFromOtherRestructuring",null,"xbrli:stringItemType","instant"]
["BriefDetailsOfChangeInShareholdingPatternOfAllEntitiesForOtherRestructuring",null,"xbrli:stringItemType","instant"]
["AnyOtherBriefSignificantInformationForOtherRestructuring",null,"xbrli:stringItemType","instant"]
[]
[null,"Slump Sale"]
["NameOfUnitOrDivisionOrSubsidiaryOfTheListedEntity","Name of unit or division or Subsidiary of the listed entity","xbrli:stringItemType","instant"]
["TypeOfUnitOrDivisionOrSubsidiaryOfTheListedEntity","Type","in-capmkt-types:SaleOrDisposalOrSlumpSaleEntityType","duration","1) This is a mandatory field.\n2) Please select value from drop down list."]
["AreaOfBusinessOfTheSlumpSaleEntities","Area of business of the slump sale entity(ies)","xbrli:stringItemType","instant"]
["PreviousYearTurnoverOfUnitOrDivisionOrSubsidiaryOfTheListedEntity","Number Of share","xbrli:monetaryItemType","duration","1) This is a mandatory field.\n2) Please enter only number"]
["PreviousYearPercentageOfTurnoverOfUnitOrDivisionOrSubsidiaryOfTheListedEntity","Percentage","num:percentItemType","duration","1) This is a mandatory field.\n2) Please enter only number with %"]
["PreviousYearRevenueOfUnitOrDivisionOrSubsidiaryOfTheListedEntity","Date on which the agreement for sale has been entered into*","xbrli:monetaryItemType","duration","1) This is a mandatory field.\n2) Please enter date in \"DD-MM-YYYY\""]
["PreviousYearPercentageOfRevenueOfUnitOrDivisionOrSubsidiaryOfTheListedEntity","The expected date of completion of Slump Sale*","num:percentItemType","duration","1) This is a mandatory field.\n2) Please enter date in \"DD-MM-YYYY\""]
["PreviousYearIncomeOfUnitOrDivisionOrSubsidiaryOfTheListedEntity","Consideration received from such Slump Sale*","xbrli:monetaryItemType","duration","1) This is a mandatory field.\n2) Please select value from drop down list."]
["PreviousYearPercentageOfIncomeOfUnitOrDivisionOrSubsidiaryOfTheListedEntity","Details of consideration","num:percentItemType","duration","1) This is mandatory field if \"Others\" Or \"All of above\" selected in \"Consideration received from such Slump Sale\" field."]
["PreviousYearNetWorthOfUnitOrDivisionOrSubsidiaryOfTheListedEntity","Brief details of buyers","xbrli:monetaryItemType","duration"]
["PreviousYearPercentageOfNetWorthOfUnitOrDivisionOrSubsidiaryOfTheListedEntity","Whether the promoter/ promoter group/ group/associate/holding/subsidiary companies/ Director&KMP and its relatives have any interest in the entity being acquired?","num:percentItemType","duration","1) This is a mandatory field.\n2) Please select value from drop down list."]
["NumberOfSharesUnderPromoterAndPromoterGroupCategoryPreEvent","Nature of interest and details thereof ","xbrli:sharesItemType","instant","1) This is mandatory field if \"Yes\" selected in \"Whether the promoter/ promoter group/ group/associate/holding/subsidiary companies/ Director&KMP and its relatives have any interest in the entity being acquired?\" field."]
["PercentageOfSharesUnderPromoterAndPromoterGroupCategoryPreEvent","Whether the transaction would fall within Related Party Transactions?","num:percentItemType","instant","1) This is a mandatory field.\n2) Please select value from drop down list."]
["NumberOfSharesUnderPublicCategoryPreEvent","Date of board meeting in which RPT approval taken","xbrli:sharesItemType","instant","1) This is mandatory field if \"Yes\" selected in \"Whether the Slump Sale would fall within Related Party Transaction(s)? (\"RPT\")\" field.\n2) Please enter date in \"DD-MM-YYYY\""]
["PercentageOfSharesUnderPublicCategoryPreEvent","Date of audit committee meeting in which RPT approval taken","num:percentItemType","instant","Please enter date in \"DD-MM-YYYY\""]
["NumberOfSharesUnderOtherCategoryPreEvent","Whether the said RPT is material? ","xbrli:sharesItemType","instant","1) This is a mandatory field.\n2) Please select value from drop down list."]
["PercentageOfSharesUnderOtherCategoryPreEvent","Date of approval from shareholders","num:percentItemType","instant","1) This is mandatory field if \"Yes\" selected in \"Whether the said RPT is material? \" field.\n2) Please enter date in \"DD-MM-YYYY\""]
["TotalNumberOfSharesPreEvent","Whether the same is done at “arms length” ?","xbrli:sharesItemType","instant","1) This is a mandatory field.\n2) Please select value from drop down list."]
["WhetherSpecialResolutionIsPassedOrProposedForSlumpSaleEvent","Whether special resolution is passed/proposed?","xbrli:booleanItemType","duration","1) This is a mandatory field.\n2) Please select value from drop down list."]
["TotalPercentageOfSharesPreEvent","Date of Special Resolution","num:percentItemType","instant","1) This is mandatory field if \"Yes\" selected in \"Whether the same is done at “arms length” \" field.\n2) Please enter date in \"DD-MM-YYYY\""]
["NumberOfSharesUnderPromoterAndPromoterGroupCategoryPostEvent","Brief details of change in shareholding pattern (if any)-","xbrli:sharesItemType","instant"]
["PercentageOfSharesUnderPromoterAndPromoterGroupCategoryPostEvent","Any other significant information (in brief)","num:percentItemType","instant"]
["NumberOfSharesUnderPublicCategoryPostEvent",null,"xbrli:sharesItemType","instant"]
["PercentageOfSharesUnderPublicCategoryPostEvent",null,"num:percentItemType","instant"]
["NumberOfSharesUnderOtherCategoryPostEvent",null,"xbrli:sharesItemType","instant"]
["PercentageOfSharesUnderOtherCategoryPostEvent",null,"num:percentItemType","instant"]
["TotalNumberOfSharesPostEvent",null,"xbrli:sharesItemType","instant"]
["TotalPercentageOfSharesPostEvent",null,"num:percentItemType","instant"]
["DateOnWhichTheAgreementForSaleHasBeenEnteredIntoForSlumpSaleEvent",null,"xbrli:dateItemType","instant"]
["TheExpectedDateOfCompletionOfSlumpSaleEvent",null,"xbrli:dateItemType","instant"]
["NatureOfConsiderationForSlumpSaleEvent",null,"in-capmkt-types:ConsiderationNature","duration"]
["DetailsOfConsiderationForSlumpSaleEvent",null,"xbrli:stringItemType","instant"]
["BriefDetailsOfBuyersSlumpSaleEvent",null,"xbrli:stringItemType","instant"]
["WhetherThePromoterOrPromoterGroupOrGroupOrAssociateOrHoldingOrSubsidiaryCompaniesOrDirectorAndKMPAndItsRelativesHaveAnyInterestInTheEntityBeingSlumpSale",null,"xbrli:booleanItemType","duration"]
["NatureOfInterestAndDetailsThereofForSlumpSaleEvent",null,"xbrli:stringItemType","instant"]
["WhetherSlumpSaleEventWouldFallWithinRelatedPartyTransactions",null,"xbrli:booleanItemType","duration"]
["DateOfBoardMeetingInWhichRPTApprovalTakenForSlumpSaleEvent",null,"xbrli:dateItemType","instant"]
["DateOfAuditCommitteeMeetingInWhichRPTApprovalTakenForSlumpSaleEvent",null,"xbrli:dateItemType","instant"]
["WhetherSlumpSaleEventRPTIsMaterial",null,"xbrli:booleanItemType","duration"]
["DateOfApprovalOfSlumpSaleEventFromShareholders",null,"xbrli:dateItemType","instant"]
["WhetherSlumpSaleEventIsDoneAtArmsLength",null,"xbrli:booleanItemType","duration"]
["WhetherSpecialResolutionIsPassedOrProposedForSlumpSaleEvent",null,"xbrli:booleanItemType","duration"]
["DateOfSpecialResolutionForSlumpSaleEvent",null,"xbrli:dateItemType","instant"]
["BriefDetailsOfChangeInShareholdingPatternOfAllEntitiesForSlumpSaleEvent",null,"xbrli:stringItemType","instant"]
["AnyOtherBriefSignificantInformationForSlumpSaleEvent",null,"xbrli:stringItemType","instant"]
[]
[]
[]
[null,"Incorporation"]
["NameOfHoldingCompany","Name of Holding Company*","xbrli:stringItemType","instant"]
["RelationshipOfHoldingCompanyWithTheListedEntity","Relationship of Holding Company with the listed entity*","in-capmkt-types:RelationshipOfHoldingCompanyWithListedEntity","duration","1) This is a mandatory field.\n2) Please select value from drop down list."]
["NameOfTheIncorporatedEntity","Name of the incorporated entity*","xbrli:stringItemType","instant"]
["IndustryToWhichTheEntityBeingIncorporatedBelongs","Industry to which the entity being incorporated belongs*","xbrli:stringItemType","instant"]
["BriefBackgroundAboutTheEntityIncorporatedInTermsOfProductsOrLineOfBusiness","Brief background about the entity incorporated in terms of products/line of business*","xbrli:stringItemType","instant"]
["CostOfSubscriptionOrThePriceAtWhichTheSharesAreSubscribed","Cost of subscription or the price at which the shares are subscribed*","in-capmkt-types:SubscriptionCostOrPrice","duration","1) This is a mandatory field.\n2) Please select value from drop down list."]
["DetailsOfCostOfSubscriptionOrThePriceAtWhichTheSharesAreSubscribed","Details of cost of subscription or the price at which the shares are subscribed*","xbrli:stringItemType","instant"]
["PercentageOfShareholdingOrControl","Percentage of shareholding / control*","num:percentItemType","instant","1) This is a mandatory field.\n2) Please enter only number with %"]
["DateOfIncorporation","Date of incorporation*","xbrli:dateItemType","instant","1) This is a mandatory field.\n2) Please enter date in DD-MM-YYYY format."]
["CountryInWhichTheEntityIsIncorporated","Country in which the entity is incorporated*","xbrli:stringItemType","instant"]
["AnyOtherBriefSignificantInformationForIncorporationEvent","Any other significant information (in brief)*","xbrli:stringItemType","instant"]
[]
[]
[]
[]
[]
[]
[]
[null,"Update"]
["BriefDetailsOfInitialAnnouncement","Brief details of Initial Announcement*","xbrli:stringItemType","instant"]
["ReasonForUpdate","Reason for Update*","in-capmkt-types:UpdateReasons","duration","1) This is a mandatory field.\n2) Please select value from drop down list."]
["TransactionCompleted","Transaction Completed","xbrli:stringItemType","instant"]
["AmountOfTransactionCompleted","Amount of transaction completed","xbrli:monetaryItemType","duration","1) This is a mandatory field if \"transaction Completed\" selected in reason for Update\n2) Please enter only number"]
["DateOfTransactionCompleted","Date of transaction completed","xbrli:dateItemType","instant","1) This is a mandatory field if \"transaction Completed\" selected in reason for Update\n2) Please enter date in \"DD-MM-YYYY\" format"]
["PercentageOfTransactionCompleted","Percentage of transaction completed","num:percentItemType","instant","1) This is a mandatory field if \"transaction Completed\" selected in reason for Update\n2) Please enter only number with %"]
["TransactionDelayed","Transaction Delayed","xbrli:stringItemType","instant"]
["InitialDateOfCompletion","Initial date of completion","xbrli:dateItemType","instant","1) This is a mandatory field if \"Transaction Delayed\" selected in \"Reason for Update\"\n2) Please enter date in \"DD-MM-YYYY\" format"]
["RevisedDate","Revised date","xbrli:dateItemType","instant","1) This is a mandatory field if \"Transaction Delayed\" selected in \"Reason for Update\"\n2) Please enter date in \"DD-MM-YYYY\" format"]
["ReasonForDelay","Reason for delay","xbrli:stringItemType","instant","This is a mandatory field if \"Transaction Delayed\" selected in \"Reason for Update\""]
["TransactionCancellation","Transaction Cancellation","in-capmkt-types:TransactionCancellationType","duration","1) This is a mandatory field if \"Transaction Cancellation\" selected in \"Reason for Update\"\n2) Please select value from drop down list."]
["ReasonForCancellation","Reason for cancellation","xbrli:stringItemType","instant","This is a mandatory field if \"Transaction Cancellation\" value selected in \"Reason for Update\" field and \"Reason for cancellation\" value selected in Transaction Cancellation field"]
["AnyLiabilityOnListedEntity","Any Liability on listed entity","xbrli:stringItemType","instant","This is a mandatory field if \"Transaction Cancellation\" value selected in \"Reason for Update\" field and \"Any Liability on listed entity\" value selected in Transaction Cancellation field"]
["TransactionModification","Transaction Modification","xbrli:stringItemType","instant","This is a mandatory field if \"Transaction Modification\" selected in \"Reason for Update\""]
["OtherUpdates","Others","xbrli:stringItemType","instant","This is a mandatory field if \"Other\" selected in \"Reason for Update\""]
["AnyOtherBriefSignificantInformationForAnnouncementUpdate","Any other significant information (in brief)","xbrli:stringItemType","instant"]
["RemarksForWebsiteDisseminationForAnnouncementUpdate","Remarks (website dissemination)","xbrli:stringItemType","instant"]
["RemarksForExchangeNotForWebsiteDisseminationForAnnouncementUpdate","Remarks for Exchange (not for Website Dissemination)","xbrli:stringItemType","instant"]